{"text_format":"1","workbook":"xlsx","n_sheets":14,"sheets":["FILL OUT FIRST - TOC","LEMA Eligibilty","FRINGE BENEFITS","LABOR","LEMA EQUIPMENT","RA EQUIPMENT","FEMA EQUIP.RATES","LEMA PER DIEM RATES","LEMA MATERIALS","RA MATERIALS","COST SUMMARY ROLL-UP","LEMA INVOICE","RA INVOICE","List Selections"],"not_rendered":{"charts":0,"images":9,"macros":0,"external_links":2,"defined_names":61,"comments":4,"pivot_tables":0},"unopened":[],"bounds":{"document_bytes":16777216,"sheet_cells":100000,"rows_first":2000,"rows_last":500,"rows_between":2000,"halvings":0,"cell_chars":16384,"cell_head_chars":4096},"cells_cut":0,"cells_raw":0,"read":"whole","date_system":"1900"}

{"sheet":"FILL OUT FIRST - TOC","index":0,"n_rows":21,"n_cols":6,"rows_kept":21,"cut":false,"hidden":false,"merged":[[2,1,2,2],[2,4,2,5],[0,4,1,4],[3,3,6,3],[7,3,17,3],[11,1,11,2],[6,4,6,5],[11,4,12,4]]}
[]
[]
[null,"TABLE OF CONTENTS\nCheck the box if included in PW package\nClick on title to link to sheet",null,null,"FILL OUT FIRST"]
[null,null,"Fringe Benefits","DISASTER \nDETAILS","Disaster Number (XXXX-DR-STATE):"]
[null,null,"Labor",null,"Applicant Name:"]
[null,null,"Equipment",null,"Category:","Law Enforcement Mutual Aid"]
[null,null,"Materials"]
[null,null,"Cost Summary Roll-Up","Agency Information","Prepared By:"]
[null,null,"Invoice",null,"Preparer Title:"]
[null,null,null,null,"Department:"]
[null,null,null,null,"County/Jurisdiction:"]
[null,"Back Up Documentation",null,null,"Mailing Address:"]
[null,null,"Time Sheets"]
[null,null,"Receipts",null,"Office Phone | Fax Number:"]
[null,null,"Department/Agency Pay Policy",null,"Contact Email:"]
[null,null,"Post Event Agreement ",null,"Certified By & Title:"]
[null,null,"ICS 214/Activity Logs ",null,"Resource Type:","Law Enforcement Mutual Aid"]
[null,null,null,null,"If Other Specify:"]
[null,null,null,null,"LEMA Incident Period:"]
[null,null,null,null,"Federal Declaration Incident Period:"]
[null,null,null,null,"CDAA Incident Period: "]

{"sheet":"LEMA Eligibilty","index":1,"n_rows":68,"n_cols":2,"rows_kept":68,"cut":false,"hidden":false,"merged":[]}
[]
[]
[]
[null,"CalOES - Law Enforcement Mutual Aid Assistance (LEMA) Program"]
[]
[null,"Eligibility For Reimbursement"]
[]
[null,"In order to be eligible for reimbursement the resource must have been requested and not self deployed. The reimbursement period starts after the first 12 hours. All back up documentation must be provided. Depending on the Type of Mutual Aid Provided the expenses incurred may vary."]
[]
[]
[null,"Criteria"]
[]
[null,"1,  LEMA requested to preposition resources (doesn't require 12-hour grace period) undeclared events, "]
[null,"     or before declarations are known."]
[null,"2.  LEMA request is related to a State or Federally declared state of emergency."]
[null,"3.  LEMA is requested for a multi-jurisdiction event."]
[null,"4.  Major law enforcement action requiring extended or specialized LEMA."]
[null,"5.  LEMA for a mass casualty incident or extended mass causality operation."]
[null,"6.  Technology support or specialized resources to support LEMA response."]
[null," "]
[]
[null,"Eligible Costs"]
[]
[]
[null,"1.  Overtime for responding Deputy/Officer.*"]
[null,"2.  Overtime for backfill for responding Deputy/Officer overtime."]
[null,"3.  Lodging   **"]
[null,"4.  Per Diem  ***"]
[null,"5.  Mileage  ****"]
[null,"6.  Extraordinary equipment (aviation assets, rapid DNA machines, etc.)"]
[]
[null,"*       Overtime calculations cannot include worker's compensation."]
[null,"**      Lodging should be at the State rate for the area of the event whenever possible. All exceptions"]
[null,"         need to be explained. Rates can be found on the LEMA PER DIEM RATES Tab."]
[null,"***    Use the State rate that can be found on the LEMA PER DIEM RATES Tab."]
[null,"****   Use the Mileage rate that can be found on the LEMA Per DIEM Rates Tab. "]
[]
[]
[]
[null," "]
[null," "]
[]
[null," "]
[null," "]
[]
[]
[]
[]
[]
[]
[]
[]
[]
[]
[]
[]
[]
[null," "]
[null," "]
[null," "]
[null," "]
[null," "]
[null," "]
[null," "]
[null," "]
[null," "]
[null," "]
[null," "]

{"sheet":"FRINGE BENEFITS","index":2,"n_rows":63,"n_cols":10,"rows_kept":63,"cut":false,"hidden":false,"merged":[[52,2,53,4],[12,6,12,7],[20,6,20,7],[22,6,22,7],[23,9,23,10],[38,1,38,10],[49,2,50,9],[37,4,37,5],[40,1,44,11],[46,1,47,10],[37,6,37,7],[37,9,37,10],[28,9,28,10],[34,9,34,10],[34,6,34,7],[24,6,24,7],[4,9,4,11],[3,9,3,11],[4,7,4,8],[3,7,3,8],[3,1,3,6],[4,1,4,6],[26,9,26,10],[9,5,9,8],[12,9,12,10],[20,9,20,10],[21,9,21,10],[0,1,0,9],[6,13,6,15],[7,5,7,8],[32,6,32,7],[30,6,30,7],[14,6,14,7],[16,6,16,7],[18,6,18,7],[28,6,28,7],[22,9,22,10],[26,6,26,7],[27,9,27,10],[24,9,24,10],[25,9,25,10],[1,1,1,11],[2,1,2,11]]}
[null,"CalOES - Law Enforcement Mutual Aid Assistance (LEMA) Program"]
[null," "]
[null,"APPLICANT'S BENEFITS CALCULATION WORKSHEET"]
[null,"APPLICANT",null,null,null,null,null,"CATEGORY",null,{"$f":"'FILL OUT FIRST - TOC'!E4","v":"Disaster Number (XXXX-DR-STATE):"}]
[null,{"$f":"'FILL OUT FIRST - TOC'!$F$5","v":0},null,null,null,null,null,{"$f":"'FILL OUT FIRST - TOC'!$F$6","v":"Law Enforcement Mutual Aid"},null,{"$f":"'FILL OUT FIRST - TOC'!$F$4","v":0}]
[]
[]
[null,null,null,null,null,"ENTER TOTAL ANNUAL PAYROLL"]
[]
[]
[]
[]
[null,null,null,null,null,null,"REGULAR TIME %",null,null,"OVERTIME %"]
[]
[null,"Holidays",null,null,null,null,{"$f":"E15*8/2080","v":0}]
[]
[null,"Vacation Leave",null,null,null,null,{"$f":"E17*8/2080","v":0}]
[]
[null,"Sick Leave",null,null,null,null,{"$f":"E19*8/2080","v":0}]
[]
[null,"* Social Security",null,null,null,null,null,null,true]
[]
[null,"* Medicare",null,null,null,null,null,null,true]
[]
[null,"* Unemployment",null,null,0,null,null,null,true]
[]
[null,"* Worker's Comp",null,null,null,null,{"$f":"IF(F$10=0,0,E27/F$10)","v":0},null,false,{"$f":"IF(I27=TRUE,G27,\"\")","v":""}]
[]
[null,"** Retirement",null,null,null,null,{"$f":"IF(F$10=0,0,E29/F$10)","v":0},null,false,{"$f":"IF(I29=TRUE,G29,\"\")","v":""}]
[]
[null,"Health Benefits",null,null,null,null,{"$f":"IF(F$10=0,0,E31/F$10)","v":0}]
[]
[null,"Life Insurance Benefits",null,null,null,null,{"$f":"IF(F$10=0,0,E33/F$10)","v":0}]
[]
[null,"Other (Describe here):",null,null,null,null,{"$f":"IF(F$10=0,0,E35/F$10)","v":0},null,false,{"$f":"IF(I35=TRUE,G35,\"\")","v":""}]
[]
[]
[null,null,null,null,"Total (in % of annual salary)",null,{"$f":"SUM(G15:H35)","v":0},null,null,{"$f":"SUM(J21:K35)","v":0}]
[null,"(FIGURES IN BLUE AUTOMATICALLY \"GO\" TO THE FORCE ACCOUNT LABOR SHEETS)"]
[null,"COMMENTS:       "]
[]
[]
[]
[]
[]
[]
[null,"I CERTIFY THAT THE INFORMATION ABOVE WAS TRANSCRIBED FROM PAYROLL RECORDS OR OTHER DOCUMENTS  WHICH ARE AVAILABLE FOR AUDIT."]
[]
[]
[null,null,{"$f":"'FILL OUT FIRST - TOC'!F16","v":0}]
[null,"CERTIFIED:"]
[]
[]
[null,"DATE:"]
[]
[]
[]
[]
[]
[]
[]
[null,"* Only categories for overtime fringe benefits.",null,null,null,null,null,null,null," "]
[null,"** Only an overtime fringe benefit when supported by employee contract"]

{"sheet":"LABOR","index":3,"n_rows":39,"n_cols":54,"rows_kept":39,"cut":false,"hidden":false,"merged":[[2,1,2,30],[4,19,4,25],[3,19,3,25],[4,16,4,18],[3,16,3,18],[3,1,3,15],[4,1,4,15],[9,30,10,30],[4,26,4,29],[8,23,10,23],[8,24,10,24],[8,25,10,25],[8,26,8,30],[9,26,10,26],[1,1,1,30],[9,29,10,29],[8,21,10,21],[8,22,10,22],[9,27,10,27],[8,9,10,9],[8,7,10,7],[8,11,10,11],[5,1,10,2],[9,28,10,28],[8,17,10,17],[8,18,10,18],[3,26,3,29],[5,5,7,25],[5,4,10,4],[5,3,10,3],[8,10,10,10],[8,19,10,19],[8,20,10,20],[8,16,10,16],[8,5,10,5],[8,12,10,12],[8,13,10,13],[8,14,10,14],[8,15,10,15],[8,6,10,6],[8,8,10,8]]}
[]
[null,"CalOES - Law Enforcement Mutual Aid Assistance (LEMA) Program "]
[null,"FORCE ACCOUNT LABOR RECORD",null,null,null,null,null,null,null,null,null,null,null,null,null,null,null,null,null,null,null,null,null,null,null,null,null,null,null,null,null,null,null,"FT","Yes"]
[null,"APPLICANT",null,null,null,null,null,null,null,null,null,null,null,null,null,null,"CATEGORY",null,null,{"$f":"'FILL OUT FIRST - TOC'!E4","v":"Disaster Number (XXXX-DR-STATE):"},null,null,null,null,null,null,"After review of the pay policy, are EXEMPT employees eligible for OT?",null,null,null,"Yes",null,null,"PT","No"]
[null,{"$f":"'FILL OUT FIRST - TOC'!$F$5","v":0},null,null,null,null,null,null,null,null,null,null,null,null,null,null,{"$f":"'FILL OUT FIRST - TOC'!$F$6","v":"Law Enforcement Mutual Aid"},null,null,{"$f":"'FILL OUT FIRST - TOC'!$F$4","v":0},null,null,null,null,null,null,"Enter OT Rate",null,null,null,1.5,null,null,"T",null,null,null,null,null,null,null,null,null,null,null,null,null,null,null,null,null,null,null,{"$f":"IF(ISBLANK(BB4),\"\",VLOOKUP(BB4,#REF!,2,0))","v":""}]
[null,"EMPLOYEE NAME / TITLE",null,"STATUS","REG / OT","    DATES & HOURS WORKED EACH WEEK",null,null,null,null,null,null,null,null,null,null,null,null,null,null,null,null,null,null,null,null,{"$f":"AA12+AA14+AA16+AA18+AA20+AA22+AA24+AA26+AA28+AA30+AA32+AA34","v":0},"TOTAL HOURS",null,"\nTOTAL",{"$f":"SUM($AE$12,$AE$14,$AE$16,$AE$18,$AE$20,$AE$22,$AE$24,$AE$26,$AE$28,$AE$30,,$AE$40,$AE$42,$AE$44,$AE$46,$AE$48,$AE$50,$AE$52,$AE$54,$AE$56,$AE$58,$AE$60,$AE$62,$AE$64,$AE$66,$AE$68,$AE$70,$AE$72,$AE$74,$AE$76,$AE$78,$AE$80,$AE$82,$AE$84,$AE$86,$AE$88,$AE$90,$AE$92,$AE$94,$AE$96,$AE$98,$AE$100,$AE$102,$AE$104,$AE$106,$AE$108,$AE$110,$AE$112,$AE$114,$AE$116,$AE$118,$AE$120,$AE$122,$AE$124,$AE$126,$AE$128,$AE$130,$AE$132,$AE$134,$AE$136,$AE$138,$AE$140,$AE$142,$AE$144,$AE$146,$AE$148,$AE$150,$AE$152,$AE$154,$AE$156,$AE$158,$AE$160,$AE$162,$AE$164,$AE$166,$AE$168,$AE$170,$AE$172,$AE$174,$AE$176,$AE$178,$AE$180,$AE$182,$AE$184,$AE$186,$AE$188,$AE$190,$AE$192,$AE$194,$AE$196,$AE$198,$AE$200,$AE$202,$AE$204,$AE$206,$AE$208,$AE$210,$AE$212,$AE$214,$AE$216,$AE$218,$AE$220,$AE$222,$AE$224,$AE$226,$AE$228,$AE$230,$AE$232,$AE$234,$AE$236,$AE$238,$AE$240,$AE$242,$AE$244,$AE$246,$AE$248,$AE$250,$AE$252,$AE$254,$AE$256,$AE$258,$AE$260,$AE$262,$AE$264,$AE$266,$AE$268,$AE$270,$AE$272,$AE$274,$AE$276,$AE$278,$AE$280,$AE$282,$AE$284,$AE$286,$AE$288,$AE$290,$AE$292,$AE$294,$AE$296,$AE$298,$AE$300,$AE$302,$AE$304,$AE$306,$AE$308,$AE$310,$AE$312,$AE$314,$AE$316,$AE$318,$AE$320,$AE$322,$AE$324,$AE$326,$AE$328,$AE$330,$AE$332,$AE$334,$AE$336,$AE$338,$AE$340,$AE$342,$AE$344,$AE$346,$AE$348,$AE$350,$AE$352,$AE$354,$AE$356,$AE$358,$AE$360,$AE$362,$AE$364,$AE$366,$AE$368,$AE$370,$AE$372,$AE$374,$AE$376,$AE$378,$AE$380,$AE$382,$AE$384,$AE$386,$AE$388,$AE$390,$AE$392,$AE$394,$AE$396,$AE$398,$AE$400,$AE$402,$AE$404,$AE$406,$AE$408,$AE$410,$AE$412,$AE$414,$AE$416,$AE$418,$AE$420,$AE$422,$AE$424,$AE$426,$AE$428,$AE$430,$AE$432,$AE$434,$AE$436,$AE$438,$AE$440,$AE$442,$AE$444,$AE$446,$AE$448,$AE$450,$AE$452,$AE$454,$AE$456,$AE$458,$AE$460,$AE$462,$AE$464,$AE$466,$AE$468,$AE$470,$AE$472,$AE$474,$AE$476,$AE$478,$AE$480,$AE$482,$AE$484,$AE$486,$AE$488,$AE$490,$AE$492,$AE$494,$AE$496,$AE$498,$AE$500,$AE$502,$AE$504,$AE$506,$AE$508,$AE$510,$AE$512,$AE$514,$AE$516,$AE$518)","v":0}]
[null,null,null,null,null,null,null,null,null,null,null,null,null,null,null,null,null,null,null,null,null,null,null,null,null,null,{"$f":"AA13+AA15+AA17+AA19+AA21+AA23+AA25+AA27++AA29+AA31+AA33+AA35","v":0},"TOTAL OT HOURS",null,"OT TOTAL",{"$f":"SUM($AE$13,$AE$15,$AE$17,$AE$19,$AE$21,$AE$23,$AE$25,$AE$27,$AE$29,$AE$31,$AE$41,$AE$43,$AE$45,$AE$47,$AE$49,$AE$51,$AE$53,AE33,$AE$55,$AE$57,$AE$59,$AE$61,$AE$63,$AE$65,$AE$67,$AE$69,$AE$71,$AE$73,$AE$75,$AE$77,$AE$79,$AE$81,$AE$83,$AE$85,$AE$87,$AE$89,$AE$91,$AE$93,$AE$95,$AE$97,$AE$99,$AE$101,$AE$103,$AE$105,$AE$107,$AE$109,$AE$111,$AE$113,$AE$115,$AE$117,$AE$119,$AE$121,$AE$123,$AE$125,$AE$127,$AE$129,$AE$131,$AE$133,$AE$135,$AE$137,$AE$139,$AE$141,$AE$143,$AE$145,$AE$147,$AE$149,$AE$151,$AE$153,$AE$155,$AE$157,$AE$159,$AE$161,$AE$163,$AE$165,$AE$167,$AE$169,$AE$171,$AE$173,$AE$175,$AE$177,$AE$179,$AE$181,$AE$183,$AE$185,$AE$187,$AE$189,$AE$191,$AE$193,$AE$195,$AE$197,$AE$199,$AE$201,$AE$203,$AE$205,$AE$207,$AE$209,$AE$211,$AE$213,$AE$215,$AE$217,$AE$219,$AE$221,$AE$223,$AE$225,$AE$227,$AE$229,$AE$231,$AE$233,$AE$235,$AE$237,$AE$239,$AE$241,$AE$243,$AE$245,$AE$247,$AE$249,$AE$251,$AE$253,$AE$255,$AE$257,$AE$259,$AE$261,$AE$263,$AE$265,$AE$267,$AE$269,$AE$271,$AE$273,$AE$275,$AE$277,$AE$279,$AE$281,$AE$283,$AE$285,$AE$287,$AE$289,$AE$291,$AE$293,$AE$295,$AE$297,$AE$299,$AE$301,$AE$303,$AE$305,$AE$307,$AE$309,$AE$311,$AE$313,$AE$315,$AE$317,$AE$319,$AE$321,$AE$323,$AE$325,$AE$327,$AE$329,$AE$331,$AE$333,$AE$335,$AE$337,$AE$339,$AE$341,$AE$343,$AE$345,$AE$347,$AE$349,$AE$351,$AE$353,$AE$355,$AE$357,$AE$359,$AE$361,$AE$363,$AE$365,$AE$367,$AE$369,$AE$371,$AE$373,$AE$375,$AE$377,$AE$379,$AE$381,$AE$383,$AE$385,$AE$387,$AE$389,$AE$391,$AE$393,$AE$395,$AE$397,$AE$399,$AE$401,$AE$403,$AE$405,$AE$407,$AE$409,$AE$411,$AE$413,$AE$415,$AE$417,$AE$419,$AE$421,$AE$423,$AE$425,$AE$427,$AE$429,$AE$431,$AE$433,$AE$435,$AE$437,$AE$439,$AE$441,$AE$443,$AE$445,$AE$447,$AE$449,$AE$451,$AE$453,$AE$455,$AE$457,$AE$459,$AE$461,$AE$463,$AE$465,$AE$467,$AE$469,$AE$471,$AE$473,$AE$475,$AE$477,$AE$479,$AE$481,$AE$483,$AE$485,$AE$487,$AE$489,$AE$491,$AE$493,$AE$495,$AE$497,$AE$499,$AE$501,$AE$503,$AE$505,$AE$507,$AE$509,$AE$511,$AE$513,$AE$515,$AE$517,$AE$519,$AE$521,$AE$523)","v":0}]
[null,null,null,null,null,null,null,null,null,null,null,null,null,null,null,null,null,null,null,null,null,null,null,null,null,null,{"$f":"SUM(AA12:AA987)","v":0},"TOTAL HOURS",null,"TOTAL COST",{"$f":"SUM(AE12:AE39)","v":0}]
[null,null,null,null,null,null,null,null,null,null,null,null,null," "," "," "," "," "," "," "," "," "," "," "," "," ","RATES / COSTS",null,null,null,null,null,null,null,null,null,null,null,null,null,null,null,null,null,null,null,null,null,null,null,null,null,null,{"$f":"IF(ISBLANK(BB8),\"\",VLOOKUP(BB8,#REF!,2,0))","v":""}]
[null,null,null,null,null,null,null,null,null,null,null,null,null,null,null,null,null,null,null,null,null,null,null,null,null,null,"TOTAL HRS","HOURLY RATE","BENEFIT RATE","TOTAL HOURLY","TOTAL COST"]
[null,null,null,null,null,null,null,null,null,null,null,null,null,null,null,null,null,null,null,null,null,null,null,null,null,null,null,null,null,null,null,null,null,null,null,null,null,null,null,null,null,null,null,null,null,null,null,null,null,null,null,null,null,{"$f":"IF(ISBLANK(BB10),\"\",VLOOKUP(BB10,#REF!,2,0))","v":""}]
[null,"Name",null,"FT","REG",null,null,null,null,null,null,null,null,null,null,null,null,null,null,null,null,null,null,null,null,null,{"$f":"SUM(F12:Z12)","v":0},null,{"$f":"IF(ISBLANK(C12),0,'FRINGE BENEFITS'!$G$38)","v":0},{"$f":"(AB12+AC12*AB12)","v":0},{"$f":"PRODUCT(AA12*AD12)","v":0}]
[null,"Title",null,"FT","OT",null,null,null,null,null,null,null,null," "," ",null,null,null,null,null,null,null,null,null,null,null,{"$f":"SUM(F13:Z13)","v":0},{"$f":"IF(ISBLANK(C12),0,IF(OR(D12=\"FT\",D12=\"PT\",D12=\"T\"),LABOR!AB12*$AE$5,IF(AND(D12=\"E\",$AE$4=\"Yes\"),LABOR!AB12,0)))","v":0},{"$f":"IF(ISBLANK(C12),0,IF(OR(D12=\"FT\",D12=\"PT\",D12=\"T\"),'FRINGE BENEFITS'!$J$38,IF(AND(D12=\"E\",$AE$5=\"Yes\"),'FRINGE BENEFITS'!$J$38,0)))","v":0},0,{"$f":"PRODUCT(AA13*AD13)","v":0},null,null,null,null,null,null,null,null,null,null,null,null,null,null,null,null,null,null,null,null,null,null,{"$f":"IF(ISBLANK(BB10),\"\",VLOOKUP(BB10,#REF!,2,0))","v":""}]
[null,"Name",null,"FT","REG",null,null,null,null,null,null,null,null,null,null,null,null,null,null,null,null,null,null,null,null,null,0,null,{"$f":"IF(ISBLANK(C14),0,'FRINGE BENEFITS'!$G$38)","v":0},0,{"$f":"PRODUCT(AA14*AD14)","v":0},null,null,null,null,null,null,null,null,null,null,null,null,null,null,null,null,null,null,null,null,null,null,{"$f":"IF(ISBLANK(BB11),\"\",VLOOKUP(BB11,#REF!,2,0))","v":{"$error":"#REF!"}}]
[null,"Title",null,"FT","OT",null,null,null,null,null,null,null,null,null," ",null,null,null,null,null,null,null,null,null,null,null,0,{"$f":"IF(ISBLANK(C14),0,IF(OR(D14=\"FT\",D14=\"PT\",D14=\"T\"),LABOR!AB14*$AE$5,IF(AND(D14=\"E\",$AE$4=\"Yes\"),LABOR!AB14,0)))","v":0},{"$f":"IF(ISBLANK(C14),0,IF(OR(D14=\"FT\",D14=\"PT\",D14=\"T\"),'FRINGE BENEFITS'!$J$38,IF(AND(D14=\"E\",$AE$5=\"Yes\"),'FRINGE BENEFITS'!$J$38,0)))","v":0},0,{"$f":"PRODUCT(AA15*AD15)","v":0},null,null,null,null,null,null,null,null,null,null,null,null,null,null,null,null,null,null,null,null,null,null,{"$f":"IF(ISBLANK(BB12),\"\",VLOOKUP(BB12,#REF!,2,0))","v":""}]
[null,"Name",null,"FT","REG",null,null,null,null,null,null,null,null,null,null,null,null,null,null,null,null,null,null,null,null,null,0,null,{"$f":"IF(ISBLANK(C16),0,'FRINGE BENEFITS'!$G$38)","v":0},{"$f":"(AB16+AC16*AB16)","v":0},{"$f":"PRODUCT(AA16*AD16)","v":0},null,null,null,"    "]
[null,"Title",null,"FT","OT",null,null,null,null,null,null,null,null," "," "," ",null,null,null,null,null,null,null,null,null,null,0,{"$f":"IF(ISBLANK(C16),0,IF(OR(D16=\"FT\",D16=\"PT\",D16=\"T\"),LABOR!AB16*$AE$5,IF(AND(D16=\"E\",$AE$4=\"Yes\"),LABOR!AB16,0)))","v":0},{"$f":"IF(ISBLANK(C16),0,IF(OR(D16=\"FT\",D16=\"PT\",D16=\"T\"),'FRINGE BENEFITS'!$J$38,IF(AND(D16=\"E\",$AE$5=\"Yes\"),'FRINGE BENEFITS'!$J$38,0)))","v":0},0,{"$f":"PRODUCT(AA17*AD17)","v":0},null,null,null,null,null,null,null,null,null,null,null,null,null,null,null,null,null,null,null,null,null,null,{"$f":"IF(ISBLANK(BB14),\"\",VLOOKUP(BB14,#REF!,2,0))","v":{"$error":"#REF!"}}]
[null,"Name",null,"FT","REG",null,null,null,null,null,null,null,null,null,null,null,null,null,null,null,null,null,null,null,null,null,0,null,{"$f":"IF(ISBLANK(C18),0,'FRINGE BENEFITS'!$G$38)","v":0},0,{"$f":"PRODUCT(AA18*AD18)","v":0},null,null,null,null,null,null,null,null,null,null,null,null,null,null,null,null,null,null,null,null,null,null,{"$f":"IF(ISBLANK(BB15),\"\",VLOOKUP(BB15,#REF!,2,0))","v":{"$error":"#REF!"}}]
[null,"Title",null,"FT","OT",null,null,null,null,null,null,null,null," "," "," ",null,null,null,null,null,null,null,null,null,null,0,{"$f":"IF(ISBLANK(C18),0,IF(OR(D18=\"FT\",D18=\"PT\",D18=\"T\"),LABOR!AB18*$AE$5,IF(AND(D18=\"E\",$AE$4=\"Yes\"),LABOR!AB18,0)))","v":0},{"$f":"IF(ISBLANK(C18),0,IF(OR(D18=\"FT\",D18=\"PT\",D18=\"T\"),'FRINGE BENEFITS'!$J$38,IF(AND(D18=\"E\",$AE$5=\"Yes\"),'FRINGE BENEFITS'!$J$38,0)))","v":0},0,0,null,null,null,null,null,null,null,null,null,null,null,null,null,null,null,null,null,null,null,null,null,null,{"$f":"IF(ISBLANK(BB16),\"\",VLOOKUP(BB16,#REF!,2,0))","v":""}]
[null,"Name",null,"FT","REG",null,null,null,null,null,null,null,null,null,null,null,null,null,null,null,null,null,null,null,null,null,0,null,{"$f":"IF(ISBLANK(C20),0,'FRINGE BENEFITS'!$G$38)","v":0},0,0]
[null,"Title",null,"FT","OT",null,null,null,null,null,null,null,null,null,null,null,null,null,null,null,null,null,null,null,null,null,0,{"$f":"IF(ISBLANK(C20),0,IF(OR(D20=\"FT\",D20=\"PT\",D20=\"T\"),LABOR!AB20*$AE$5,IF(AND(D20=\"E\",$AE$4=\"Yes\"),LABOR!AB20,0)))","v":0},{"$f":"IF(ISBLANK(C20),0,IF(OR(D20=\"FT\",D20=\"PT\",D20=\"T\"),'FRINGE BENEFITS'!$J$38,IF(AND(D20=\"E\",$AE$5=\"Yes\"),'FRINGE BENEFITS'!$J$38,0)))","v":0},0,0,null,null,null,null,null,null,null,null,null,null,null,null,null,null,null,null,null,null,null,null,null,null,{"$f":"IF(ISBLANK(BB18),\"\",VLOOKUP(BB18,#REF!,2,0))","v":{"$error":"#REF!"}}]
[null,"Name",null,"FT","REG",null,null,null,null,null,null,null,null,null,null,null,null,null,null,null,null,null,null,null,null,null,0,null,{"$f":"IF(ISBLANK(C22),0,'FRINGE BENEFITS'!$G$38)","v":0},0,0,null,null,null,null,null,null,null,null,null,null,null,null,null,null,null,null,null,null,null,null,null,null,{"$f":"IF(ISBLANK(BB19),\"\",VLOOKUP(BB19,#REF!,2,0))","v":{"$error":"#REF!"}}]
[null,"Title",null,"FT","OT",null,null,null,null,null,null,null,null,null,null,null,null,null,null,null,null,null,null,null,null,null,0,{"$f":"IF(ISBLANK(C22),0,IF(OR(D22=\"FT\",D22=\"PT\",D22=\"T\"),LABOR!AB22*$AE$5,IF(AND(D22=\"E\",$AE$4=\"Yes\"),LABOR!AB22,0)))","v":0},{"$f":"IF(ISBLANK(C22),0,IF(OR(D22=\"FT\",D22=\"PT\",D22=\"T\"),'FRINGE BENEFITS'!$J$38,IF(AND(D22=\"E\",$AE$5=\"Yes\"),'FRINGE BENEFITS'!$J$38,0)))","v":0},0,0,null,null,null,null,null,null,null,null,null,null,null,null,null,null,null,null,null,null,null,null,null,null,{"$f":"IF(ISBLANK(BB20),\"\",VLOOKUP(BB20,#REF!,2,0))","v":""}]
[null,"Name",null,"FT","REG",null,null,null,null,null,null,null,null,null,null,null,null,null,null,null,null,null,null,null,null,null,0,null,{"$f":"IF(ISBLANK(C24),0,'FRINGE BENEFITS'!$G$38)","v":0},0,0]
[null,"Title",null,"FT","OT",null,null,null,null,null,null,null,null,null,null,null,null,null,null,null,null,null,null,null,null,null,0,{"$f":"IF(ISBLANK(C24),0,IF(OR(D24=\"FT\",D24=\"PT\",D24=\"T\"),LABOR!AB24*$AE$5,IF(AND(D24=\"E\",$AE$4=\"Yes\"),LABOR!AB24,0)))","v":0},{"$f":"IF(ISBLANK(C24),0,IF(OR(D24=\"FT\",D24=\"PT\",D24=\"T\"),'FRINGE BENEFITS'!$J$38,IF(AND(D24=\"E\",$AE$5=\"Yes\"),'FRINGE BENEFITS'!$J$38,0)))","v":0},0,0,null,null,null,null,null,null,null,null,null,null,null,null,null,null,null,null,null,null,null,null,null,null,{"$f":"IF(ISBLANK(BB22),\"\",VLOOKUP(BB22,#REF!,2,0))","v":{"$error":"#REF!"}}]
[null,"Name",null,"FT","REG",null,null,null,null,null,null,null,null,null,null,null,null,null,null,null,null,null,null,null,null,null,0,null,{"$f":"IF(ISBLANK(C26),0,'FRINGE BENEFITS'!$G$38)","v":0},0,0,null,null,null,null,null,null,null,null,null,null,null,null,null,null,null,null,null,null,null,null,null,null,{"$f":"IF(ISBLANK(BB23),\"\",VLOOKUP(BB23,#REF!,2,0))","v":{"$error":"#REF!"}}]
[null,"Title",null,"FT","OT",null,null,null,null,null,null,null,null,null,null,null,null,null,null,null,null,null,null,null,null,null,0,{"$f":"IF(ISBLANK(C26),0,IF(OR(D26=\"FT\",D26=\"PT\",D26=\"T\"),LABOR!AB26*$AE$5,IF(AND(D26=\"E\",$AE$4=\"Yes\"),LABOR!AB26,0)))","v":0},{"$f":"IF(ISBLANK(C26),0,IF(OR(D26=\"FT\",D26=\"PT\",D26=\"T\"),'FRINGE BENEFITS'!$J$38,IF(AND(D26=\"E\",$AE$5=\"Yes\"),'FRINGE BENEFITS'!$J$38,0)))","v":0},0,0,null,null,null,null,null,null,null,null,null,null,null,null,null,null,null,null,null,null,null,null,null,null,{"$f":"IF(ISBLANK(BB24),\"\",VLOOKUP(BB24,#REF!,2,0))","v":""}]
[null,"Name",null,"FT","REG",null,null,null,null,null,null,null,null,null,null,null,null,null,null,null,null,null,null,null,null,null,0,null,{"$f":"IF(ISBLANK(C28),0,'FRINGE BENEFITS'!$G$38)","v":0},0,0,null,null,null,null,null,null,null,null,null,null,null,null,null,null,null,null,null,null,null,null,null,null,{"$f":"IF(ISBLANK(BB25),\"\",VLOOKUP(BB25,#REF!,2,0))","v":{"$error":"#REF!"}}]
[null,"Title",null,"FT","OT",null,null,null,null,null,null,null,null,null,null,null,null,null,null,null,null,null,null,null,null,null,0,{"$f":"IF(ISBLANK(C28),0,IF(OR(D28=\"FT\",D28=\"PT\",D28=\"T\"),LABOR!AB28*$AE$5,IF(AND(D28=\"E\",$AE$4=\"Yes\"),LABOR!AB28,0)))","v":0},{"$f":"IF(ISBLANK(C28),0,IF(OR(D28=\"FT\",D28=\"PT\",D28=\"T\"),'FRINGE BENEFITS'!$J$38,IF(AND(D28=\"E\",$AE$5=\"Yes\"),'FRINGE BENEFITS'!$J$38,0)))","v":0},0,0,null,null,null,null,null,null,null,null,null,null,null,null,null,null,null,null,null,null,null,null,null,null,{"$f":"IF(ISBLANK(BB26),\"\",VLOOKUP(BB26,#REF!,2,0))","v":{"$error":"#REF!"}}]
[null,"Name",null,"FT","REG",null,null,null,null,null,null,null,null,null,null,null,null,null,null,null,null,null,null,null,null,null,0,null,{"$f":"IF(ISBLANK(C30),0,'FRINGE BENEFITS'!$G$38)","v":0},0,0,null,null,null,null,null,null,null,null,null,null,null,null,null,null,null,null,null,null,null,null,null,null,{"$f":"IF(ISBLANK(BB27),\"\",VLOOKUP(BB27,#REF!,2,0))","v":{"$error":"#REF!"}}]
[null,"Title",null,"FT","OT",null,null,null,null,null,null,null,null,null,null,null,null,null,null,null,null,null,null,null,null,null,0,{"$f":"IF(ISBLANK(C30),0,IF(OR(D30=\"FT\",D30=\"PT\",D30=\"T\"),LABOR!AB30*$AE$5,IF(AND(D30=\"E\",$AE$4=\"Yes\"),LABOR!AB30,0)))","v":0},{"$f":"IF(ISBLANK(C30),0,IF(OR(D30=\"FT\",D30=\"PT\",D30=\"T\"),'FRINGE BENEFITS'!$J$38,IF(AND(D30=\"E\",$AE$5=\"Yes\"),'FRINGE BENEFITS'!$J$38,0)))","v":0},0,0,null,null,null,null,null,null,null,null,null,null,null,null,null,null,null,null,null,null,null,null,null,null,{"$f":"IF(ISBLANK(#REF!),\"\",VLOOKUP(#REF!,#REF!,2,0))","v":{"$error":"#REF!"}}]
[null,"Name",null,"FT","REG",null,null,null,null,null,null,null,null,null,null,null,null,null,null,null,null,null,null,null,null,null,0,null,{"$f":"IF(ISBLANK(C32),0,'FRINGE BENEFITS'!$G$38)","v":0},{"$f":"(AB32+AC32*AB32)","v":0},{"$f":"PRODUCT(AA32*AD32)","v":0},null,null,null,null,null,null,null,null,null,null,null,null,null,null,null,null,null,null,null,null,null,null,{"$f":"IF(ISBLANK(#REF!),\"\",VLOOKUP(#REF!,#REF!,2,0))","v":{"$error":"#REF!"}}]
[null,"Title",null,"FT","OT",null,null,null,null,null,null,null,null,null,null,null,null,null,null,null,null,null,null,null,null,null,0,{"$f":"IF(ISBLANK(C32),0,IF(OR(D32=\"FT\",D32=\"PT\",D32=\"T\"),LABOR!AB32*$AE$5,IF(AND(D32=\"E\",$AE$4=\"Yes\"),LABOR!AB32,0)))","v":0},{"$f":"IF(ISBLANK(C32),0,IF(OR(D32=\"FT\",D32=\"PT\",D32=\"T\"),'FRINGE BENEFITS'!$J$38,IF(AND(D32=\"E\",$AE$5=\"Yes\"),'FRINGE BENEFITS'!$J$38,0)))","v":0},0,0,null,null,null,null,null,null,null,null,null,null,null,null,null,null,null,null,null,null,null,null,null,null,{"$f":"IF(ISBLANK(BB28),\"\",VLOOKUP(BB28,#REF!,2,0))","v":{"$error":"#REF!"}}]
[null,"Name",null,"FT","REG",null,null,null,null,null,null,null,null,null,null,null,null,null,null,null,null,null,null,null,null,null,{"$f":"SUM(F34:Z34)","v":0},null,{"$f":"IF(ISBLANK(C34),0,'FRINGE BENEFITS'!$G$38)","v":0},{"$f":"(AB34+AC34*AB34)","v":0},{"$f":"PRODUCT(AA34*AD34)","v":0},null,null,null,null,null,null,null,null,null,null,null,null,null,null,null,null,null,null,null,null,null,null,{"$f":"IF(ISBLANK(BB29),\"\",VLOOKUP(BB29,#REF!,2,0))","v":{"$error":"#REF!"}}]
[null,"Title",null,"FT","OT",null,null,null,null,null,null,null,null,null,null,null,null,null,null,null,null,null,null,null,null,null,0,{"$f":"IF(ISBLANK(C34),0,IF(OR(D34=\"FT\",D34=\"PT\",D34=\"T\"),LABOR!AB34*$AE$5,IF(AND(D34=\"E\",$AE$4=\"Yes\"),LABOR!AB34,0)))","v":0},{"$f":"IF(ISBLANK(C34),0,IF(OR(D34=\"FT\",D34=\"PT\",D34=\"T\"),'FRINGE BENEFITS'!$J$38,IF(AND(D34=\"E\",$AE$5=\"Yes\"),'FRINGE BENEFITS'!$J$38,0)))","v":0},0,0,null,null,null,null,null,null,null,null,null,null,null,null,null,null,null,null,null,null,null,null,null,null,{"$f":"IF(ISBLANK(BB30),\"\",VLOOKUP(BB30,#REF!,2,0))","v":{"$error":"#REF!"}}]
[null,"Name",null,"FT","REG",null,null,null,null,null,null,null,null,null,null,null,null,null,null,null,null,null,null,null,null,null,{"$f":"SUM(F36:Z36)","v":0},null,{"$f":"IF(ISBLANK(C36),0,'FRINGE BENEFITS'!$G$38)","v":0},{"$f":"(AB36+AC36*AB36)","v":0},{"$f":"PRODUCT(AA36*AD36)","v":0},null,null,null,null,null,null,null,null,null,null,null,null,null,null,null,null,null,null,null,null,null,null,{"$f":"IF(ISBLANK(BB31),\"\",VLOOKUP(BB31,#REF!,2,0))","v":{"$error":"#REF!"}}]
[null,"Title",null,"FT","OT",null,null,null,null,null,null,null,null,null,null,null,null,null,null,null,null,null,null,null,null,null,0,{"$f":"IF(ISBLANK(C36),0,IF(OR(D36=\"FT\",D36=\"PT\",D36=\"T\"),LABOR!AB36*$AE$5,IF(AND(D36=\"E\",$AE$4=\"Yes\"),LABOR!AB36,0)))","v":0},{"$f":"IF(ISBLANK(C36),0,IF(OR(D36=\"FT\",D36=\"PT\",D36=\"T\"),'FRINGE BENEFITS'!$J$38,IF(AND(D36=\"E\",$AE$5=\"Yes\"),'FRINGE BENEFITS'!$J$38,0)))","v":0},0,0,null,null,null,null,null,null,null,null,null,null,null,null,null,null,null,null,null,null,null,null,null,null,{"$f":"IF(ISBLANK(BB32),\"\",VLOOKUP(BB32,#REF!,2,0))","v":{"$error":"#REF!"}}]
[null,"Name",null,"FT","REG",null,null,null,null,null,null,null,null,null,null,null,null,null,null,null,null,null,null,null,null,null,{"$f":"SUM(F38:Z38)","v":0},null,{"$f":"IF(ISBLANK(C38),0,'FRINGE BENEFITS'!$G$38)","v":0},{"$f":"(AB38+AC38*AB38)","v":0},{"$f":"PRODUCT(AA38*AD38)","v":0},null,null,null,null,null,null,null,null,null,null,null,null,null,null,null,null,null,null,null,null,null,null,{"$f":"IF(ISBLANK(BB33),\"\",VLOOKUP(BB33,#REF!,2,0))","v":{"$error":"#REF!"}}]
[null,"Title",null,"FT","OT",null,null,null,null,null,null,null,null,null,null,null,null,null,null,null,null,null,null,null,null,null,0,{"$f":"IF(ISBLANK(C38),0,IF(OR(D38=\"FT\",D38=\"PT\",D38=\"T\"),LABOR!AB38*$AE$5,IF(AND(D38=\"E\",$AE$4=\"Yes\"),LABOR!AB38,0)))","v":0},{"$f":"IF(ISBLANK(C38),0,IF(OR(D38=\"FT\",D38=\"PT\",D38=\"T\"),'FRINGE BENEFITS'!$J$38,IF(AND(D38=\"E\",$AE$5=\"Yes\"),'FRINGE BENEFITS'!$J$38,0)))","v":0},0,0,null,null,null,null,null,null,null,null,null,null,null,null,null,null,null,null,null,null,null,null,null,null,{"$f":"IF(ISBLANK(BB34),\"\",VLOOKUP(BB34,#REF!,2,0))","v":{"$error":"#REF!"}}]

{"sheet":"LEMA EQUIPMENT","index":4,"n_rows":30,"n_cols":34,"rows_kept":30,"cut":false,"hidden":false,"merged":[[6,8,7,28],[6,1,7,7],[5,26,5,30],[2,1,2,30],[3,1,3,30],[4,23,4,25],[5,23,5,25],[4,26,4,30],[4,1,4,22],[5,1,5,22]]}
[null,null,null,null,null,null,null,"CalOES - Law Enforcement Mutual Aid Assistance (LEMA) Program "]
[]
[null,"  "]
[null,"FORCE ACCOUNT EQUIPMENT RECORD",null,null,null,null,null,null,null,null,null,null,null,null,null,null,null,null,null,null,null,null,null,null,null,null,null,null,null,null,null,null,null,"HR"]
[null,"APPLICANT",null,null,null,null,null,null,null,null,null,null,null,null,null,null,null,null,null,null,null,null,null,"CATEGORY",null,null,{"$f":"'FILL OUT FIRST - TOC'!E4","v":"Disaster Number (XXXX-DR-STATE):"},null,null,null,null,null,null,"MI"]
[null,{"$f":"'FILL OUT FIRST - TOC'!$F$5","v":0},null,null,null,null,null,null,null,null,null,null,null,null,null,null,null,null,null,null,null,null,null,{"$f":"'FILL OUT FIRST - TOC'!$F$6","v":"Law Enforcement Mutual Aid"},null,null,{"$f":"'FILL OUT FIRST - TOC'!$F$4","v":0}]
[null,"EQUIPMENT / OPERATOR INFORMATION",null,null,null,null,null,null,"DATES / HOURS/MILEAGE USED EACH DAY",null,null,null,null,null,null,null,null,null,null,null,null,null,null,null,null,null,null,null,null,"TOTAL","TOTAL"]
[null,null,null,null,null,null,null,null,null,null,null,null,null,null,null,null,null,null,null,null,null,null,null,null,null,null,null,null,null,"HOURS","COST"]
[null,"Equipment Name \n(Unit Number, Make, Model)","Operator's Name","HP","Capacity","Unit","Equip. Code #","Equip. Rate",null,null,null,null,null,null,null,null," "," "," "," "," "," "," "," "," "," "," "," "," ",{"$f":"SUM(AD12:AD989)","v":0},{"$f":"SUM(AE10:AE989)","v":0}]
[null,null,null,null,null,"MI",null,0.72499999999999998,null,null,null,null,null,null,null,null,null,null,null,null,null,null,null,null,null,null,null,null,null,{"$f":"SUM(I10:AC10)","v":0},{"$f":"H10*AD10","v":0}]
[null,null,null,null,null,"MI",null,0.72499999999999998,null,null,null,null,null,null,null,null,null,null,null,null,null,null,null,null,null,null,null,null,null,{"$f":"SUM(I11:AC11)","v":0},{"$f":"H11*AD11","v":0}]
[null,null,null," "," ","MI",null,0.72499999999999998,null,null,null,null,null,null,null,null,null," ",null,null,null,null,null,null,null,null,null,null,null,0,{"$f":"H12*AD12","v":0}]
[null,null,null,null,null,"MI",null,0.72499999999999998,null,null,null,null,null,null,null,null,null,null,null,null,null,null,null,null,null,null,null,null,null,0,{"$f":"H13*AD13","v":0}]
[null,null,null,null,null,"MI",null,0.72499999999999998,null,null,null,null,null,null,null,null,null,null,null,null,null,null,null,null,null,null,null,null,null,0,{"$f":"H14*AD14","v":0}]
[null,null,null," "," ","MI",null,0.72499999999999998,null,null,null,null,null,null,null,null,null,null," ",null,null,null,null,null,null,null,null,null,null,0,0]
[null,null,null,null,null,"MI",null,0.72499999999999998,null,null,null,null,null,null,null,null,null,null,null,null,null,null,null,null,null,null,null,null,null,0,0]
[null,null,null,null,null,"MI",null,0.72499999999999998,null,null,null,null,null,null,null,null,null,null,null,null,null,null,null,null,null,null,null,null,null,0,0]
[null,null,null,null,null,"MI",null,0.72499999999999998,null,null,null,null,null,null,null,null,null,null,null,null,null,null,null,null,null,null,null,null,null,0,{"$f":"H18*AD18","v":0}]
[null,null,null,null,null,"MI",null,0.72499999999999998,null,null,null,null,null,null,null,null,null,null,null,null,null,null,null,null,null,null,null,null,null,0,0]
[null,null,null,null,null,"MI",null,0.72499999999999998,null,null,null,null,null,null,null,null,null,null,null,null,null,null,null,null,null,null,null,null,null,0,0]
[null,null,null,null,null,"MI",null,0.72499999999999998,null,null,null,null,null,null,null,null,null,null,null,null,null,null,null,null,null,null,null,null,null,{"$f":"SUM(I21:AC21)","v":0},0]
[null,null,null,null,null,null,null,null,null,null,null,null,null,null,null,null,null,null,null,null,null,null,null,null,null,null,null,null,null,0,0]
[null,null,null,null,null,null,null,null,null,null,null,null,null,null,null,null,null,null,null,null,null,null,null,null,null,null,null,null,null,0,0]
[null,null,null,null,null,null,null,null,null,null,null,null,null,null,null,null,null,null,null,null,null,null,null,null,null,null,null,null,null,0,0]
[null,null,null,null,null,null,null,null,null,null,null,null,null,null,null,null,null,null,null,null,null,null,null,null,null,null,null,null,null,0,0]
[null,null,null,null,null,null,null,null,null,null,null,null,null,null,null,null,null,null,null,null,null,null,null,null,null,null,null,null,null,0,0]
[null,null,null,null,null,null,null,null,null,null,null,null,null,null,null,null,null,null,null,null,null,null,null,null,null,null,null,null,null,{"$f":"SUM(I27:AC27)","v":0},0]
[null,null,null,null,null,null,null,null,null,null,null,null,null,null,null,null,null,null,null,null,null,null,null,null,null,null,null,null,null,{"$f":"SUM(I28:AC28)","v":0},0]
[null,null,null,null,null,null,null,null,null,null,null,null,null,null,null,null,null,null,null,null,null,null,null,null,null,null,null,null,null,0,0]
[null,null,null,null,null,null,null,null,null,null,null,null,null,null,null,null,null,null,null,null,null,null,null,null,null,null,null,null,null,0,0]

{"sheet":"RA EQUIPMENT","index":5,"n_rows":29,"n_cols":34,"rows_kept":29,"cut":false,"hidden":false,"merged":[[5,1,6,7],[5,8,6,28],[1,1,1,30],[2,1,2,30],[3,1,3,22],[3,23,3,25],[3,26,3,30],[4,1,4,22],[4,23,4,25],[4,26,4,30]]}
[]
[null,"  "]
[null,"FORCE ACCOUNT EQUIPMENT RECORD",null,null,null,null,null,null,null,null,null,null,null,null,null,null,null,null,null,null,null,null,null,null,null,null,null,null,null,null,null,null,null,"HR"]
[null,"APPLICANT",null,null,null,null,null,null,null,null,null,null,null,null,null,null,null,null,null,null,null,null,null,"CATEGORY",null,null,{"$f":"'FILL OUT FIRST - TOC'!E4","v":"Disaster Number (XXXX-DR-STATE):"},null,null,null,null,null,null,"MI"]
[null,{"$f":"'FILL OUT FIRST - TOC'!$F$5","v":0},null,null,null,null,null,null,null,null,null,null,null,null,null,null,null,null,null,null,null,null,null,{"$f":"'FILL OUT FIRST - TOC'!$F$6","v":"Law Enforcement Mutual Aid"},null,null,{"$f":"'FILL OUT FIRST - TOC'!$F$4","v":0}]
[null,"EQUIPMENT / OPERATOR INFORMATION",null,null,null,null,null,null,"DATES / HOURS/MILEAGE USED EACH DAY",null,null,null,null,null,null,null,null,null,null,null,null,null,null,null,null,null,null,null,null,"TOTAL","TOTAL"]
[null,null,null,null,null,null,null,null,null,null,null,null,null,null,null,null,null,null,null,null,null,null,null,null,null,null,null,null,null,"HOURS","COST"]
[null,"Equipment Name \n(Unit Number, Make, Model)","Operator's Name","HP","Capacity","Unit","Equip. Code #","Equip. Rate"," "," "," "," "," "," "," "," "," "," "," "," "," "," "," "," "," "," "," "," "," ",{"$f":"SUM(AD9:AD988)","v":0},{"$f":"SUM(AE9:AE988)","v":0}]
[null," "," "," "," ","MI",null,0.7,null,null,null,null,null,null,null,null,null," ",null,null,null,null,null,null,null,null,null,null,null,{"$f":"SUM(I9:AC9)","v":0},{"$f":"H9*AD9","v":0}]
[null," "," "," "," ","MI",null,null,null,null,null,null,null,null,null,null,null,null," ",null,null,null,null,null,null,null,null,null,null,{"$f":"SUM(I10:AC10)","v":0},0]
[null,null,null,null,null,null,null,null,null,null,null,null,null,null,null,null,null,null,null,null,null,null,null,null,null,null,null,null,null,{"$f":"SUM(I11:AC11)","v":0},0]
[null,null,null,null,null,null,null,null,null,null,null,null,null,null,null,null,null,null,null,null,null,null,null,null,null,null,null,null,null,{"$f":"SUM(I12:AC12)","v":0},0]
[null,null,null,null,null,null,null,null,null,null,null,null,null,null,null,null,null,null,null,null,null,null,null,null,null,null,null,null,null,0,0]
[null,null,null,null,null,null,null,null,null,null,null,null,null,null,null,null,null,null,null,null,null,null,null,null,null,null,null,null,null,0,0]
[null,null,null,null,null,null,null,null,null,null,null,null,null,null,null,null,null,null,null,null,null,null,null,null,null,null,null,null,null,0,0]
[null,null,null,null,null,null,null,null,null,null,null,null,null,null,null,null,null,null,null,null,null,null,null,null,null,null,null,null,null,0,0]
[null,null,null,null,null,null,null,null,null,null,null,null,null,null,null," ",null,null,null,null,null,null,null,null,null,null,null,null,null,0,0]
[null,null,null,null,null,null,null,null,null,null,null,null,null,null,null,null,null,null,null,null,null,null,null,null,null,null,null,null,null,0,0]
[null,null,null,null,null,null,null,null,null,null,null,null,null,null,null,null,null,null,null,null,null,null,null,null,null,null,null,null,null,0,0]
[null,null,null,null,null,null,null,null,null,null,null,null,null,null,null,null,null,null,null,null,null,null,null,null,null,null,null,null,null,0,0]
[null,null,null,null,null,null,null,null,null,null,null,null,null,null,null,null,null,null,null,null,null,null,null,null,null,null,null,null,null,0,0]
[null,null,null,null,null,null,null,null,null,null,null,null,null,null,null,null,null,null,null,null,null,null,null,null,null,null,null,null,null,0,0]
[null,null,null,null,null,null,null,null,null,null,null,null,null,null,null,null,null,null,null,null,null,null,null,null,null,null,null,null,null,0,0]
[null,null,null,null,null,null,null,null,null,null,null,null,null,null,null,null,null,null,null,null,null,null,null,null,null,null,null,null,null,0,0]
[null,null,null,null,null,null,null,null,null,null,null,null,null,null,null,null,null,null,null,null,null,null,null,null,null,null,null,null,null,0,0]
[null,null,null,null,null,null,null,null,null,null,null,null,null,null,null,null,null,null,null,null,null,null,null,null,null,null,null,null,null,0,0]
[null,null,null,null,null,null,null,null,null,null,null,null,null,null,null,null,null,null,null,null,null,null,null,null,null,null,null,null,null,0,0]
[null,null,null,null,null,null,null,null,null,null,null,null,null,null,null,null,null,null,null,null,null,null,null,null,null,null,null,null,null,0,0]
[null,null,null,null,null,null,null,null,null,null,null,null,null,null,null,null,null,null,null,null,null,null,null,null,null,null,null,null,null,0,0]

{"sheet":"FEMA EQUIP.RATES","index":6,"n_rows":467,"n_cols":10,"rows_kept":467,"cut":false,"hidden":false,"merged":[[302,3,302,4],[347,3,347,4],[371,3,371,4],[385,3,385,4],[0,0,0,9]]}
["FEMA EQUIPMENT RATES 2025"]
["#","Cost Code","Equipment","Manufacturer","Specification","Capacity or Size","HP","Notes","Unit","2025 Rates"]
[1,8010,"Air Compressor","Miscellaneous Tank Mounted Air Compressors80/25","41 CFM","41 CFM","to 10","Hoses included.","hour",1.8]
[2,8011,"Air Compressor","Multiquip DIS100SSK4F","103 CFM","103 CFM","to 30","Hoses included.","hour",20.23]
[3,8012,"Air Compressor","Sullivan-Palatek D130Q6IZ","130 CFM","130 CFM","to 50","Hoses included.","hour",27.71]
[4,8013,"Air Compressor","Grimmer-Schmidt 175","175 CFM","175 CFM","to 90","Hoses included.","hour",26.29]
[5,8014,"Air Compressor","Sullivan-Palatek D375QH6CA","400 CFM","400 CFM","to 145","Hoses included.","hour",58.41]
[6,8015,"Air Compressor","Grimmer-Schmidt 800","575 CFM","575 CFM","to 230","Hoses included.","hour",105.25]
[7,8016,"Air Compressor","Ingersoll Rand XP1200WCU","1100 CFM","1100 CFM","to 355","Hoses included.","hour",187.83]
[8,8017,"Air Compressor","Sullair 1600DTQCA","1600 CFM","1600 CFM","to 500","Hoses included.","hour",200.97]
[9,8040,"Ambulance",null,"GVW 8600 Pounds",null,"to 150",null,"hour",31.69]
[10,8041,"Ambulance",null,"GVW 11000 Pounds",null,"to 210",null,"hour",38.68]
[11,8050,"Board, Arrow","Miscellaneous Trailer mounted Arrow Boards",null,null,"to 8","Trailer Mounted.","hour",5.15]
[12,8051,"Board, Message","Miscellaneous CMSBBI",null,null,"to 5","Trailer Mounted.","hour",11.18]
[13,8060,"Auger, Portable","Miscellaneous One Man Wheel Mount","16 In","16 In","to 6",null,"hour",1.99]
[14,8061,"Auger, Portable","Miscellaneous Portable Earth Auger","18 In","18 In","to 13",null,"hour",4.8899999999999997]
[15,8062,"Auger, Tractor Mntd","Miscellaneous TLB Auger Mount","36 In","36 In","to 13","Includes digger, boom & mounting\nhardware","hour",2.94]
[16,8063,"Auger, Truck Mntd","Miscellaneous DH-Avg","24 In","24 In","to 100","8'x8'x10' Drophammer","hour",50.79]
[17,8064,"Hydraulic Post Driver","Miscellaneous VIB-Avg","24 In","24 In","to 100","Hyd. Impact Hammer","hour",53.97]
[18,8065,"Auger","Horizontal Directional BoringMachine","250 X 100","250 X 100","to 300","DD-140B YR-2003","hour",251.58]
[19,8067,"Auger, Directional Boring Machine","Miscellaneous 7K - Horizontal DrillingMachines","7,000 lbs","7,000 lbs","to 25","Corrected to use Misc. 7K","hour",87.45]
[20,8067.1,"Directional Boring Machine","Vermeer D24X40A (disc. 2001)","Spindle Torque 4000 ft/lb","Spindle Torque 4000 ft/lb",125,null,"hour",210.47]
[21,8068,"Bush Hog","New Holland 272GMS","72-IN cutting width",null,null,null,"hour",18.8]
[22,8069,"Bush Hog","Vermeer MC3700","12-FT cutting width",null,null,null,"hour",29.22]
[23,8069.1,"Bush Hog","Bush Hog 2820 Average Retail Rental Rates","85-IN cutting width",null,null,null,"hour",45.42]
[24,8070,"Automobile, Sedan","2023 Dodge Charger SXT","Pentastar 3.6L V-6 DOHC, variable valve control, regular unleade",null,null,null,"Mile",0.7]
[25,8071,"Automobile, Pick-up","2023 RAM 1500 Tradesman","Pentastar 3.6L V-6 DOHC, variable valve control, regular unleade",null,null,null,"hour",15.29]
[26,8073,"Automobile, Police","2023 Dodge Charger Pursuit","Enigne: 3.6L V6 or 5.7L V8 HEMI\nTransmission: 8 Speed",null,null,null,"hour",19.14]
[27,8074,"Automobile, Police","2024 Dodge Durango Pursuit","AWD 3.6L V6 24V VVT Pentastar Engine with ESS Transmission: 8–Speed\nAutomatic 850RE Transmission",null,null,null,"hour",19.190000000000001]
[28,8075,"Motorcycle, Police","2023 BMW R 1250 RT-P",null,null,null,null,"hour",9.5299999999999994]
[29,8075.1,"Motorcycle, Police","2023 BMW R 1250 RT-P",null,null,null,null,"mile",0.68]
[30,8076,"Automobile, SUV Mid Size","2023 Ford Explorer XLT","EcoBoost 2.3L I-4 gasoline direct injection, DOHC, variable valv",null,null,null,"hour",16.100000000000001]
[31,8077,"Automobile, SUV Full Size","2023 Ford Expedition XLT","3.5L V6 24V PDI DOHC Twin Turbo",null,null,null,"hour",25.02]
[32,8078,"MRAP Armored Rescue Vehicle","Military Surplus Vehicle","Military Surplus Vehicle",null,"375-450",null,"hour",73.37]
[33,8079,"MRAP C-MTV","gvwr 55000 Lbs","gvwr 55000 Lbs",null,"to 350",null,"hour",63.32]
[34,8080,"All Terrain Vehicle","Polaris Ranger SP 570","2 Seat with bed box","up to 600CC","up to 50","New","hour",16.72]
[35,8081,"All Terrain Vehicle","Polaris Ranger SP 570","4 Seat with bed box","up to 600CC","up to 50","New","hour",17.45]
[36,8082,"All Terrain Vehicle","Polaris Sportsman 850 Mud Edition","Single seater","up to 850CC","up to 80","New","hour",18.22]
[37,8083,"All Terrain Vehicle","Polaris Sportsman 1000 Mud Edition","Single seater","up to 1000CC","up to 90","New","hour",20.41]
[38,8084,"All Terrain Vehicle","Polaris General XP 1000","2 seater","up to 1000CC","up to 100","New","hour",27.9]
[39,8085,"All Terrain Vehicle","Polaris General XP 1000","4 seater","up to 1000CC","up to 100","New","hour",30.09]
[40,8086,"All Terrain Vehicle","Polaris Expedition","2 seater closed cab","up to 1000CC","up to 125","new","hour",34.47]
[41,8087,"All Terrain Vehicle","Polaris Expedition ADV 5","5 seater closed cab","up to 1000CC","up to 125","New","hour",37.39]
[42,8088,"Drone Atomizer (Sprayer)","DJI AGRAS T50","Drone comes with Liquid and Dry tanks, batteries, software and other necessary equipment to operate.","100 pounds Dry & 40 Liters Liquid",null,"new","hour",26.27]
[43,8088.1,"Drone Surveillance","Surveillance Drone","Parrot ANAFI USA GOV EDITION",null,null,"New","hour",11.3]
[44,8111,"Barge, Deck","Miscellaneous 300 -  Deck Cargo Barges","50'x35'x9'","50'x35'x9'","N/A","Push by Tug-Boat","hour",48.28]
[45,8112,"Barge, Deck","Miscellaneous Deck 1100 -  Deck Cargo Barges","120'x45'x10-FT","120'x45'x10-FT","N/A","Push by Tug-Boat","hour",95.52]
[46,8113,"Barge, Deck","Miscellaneous 1250 - Deck Cargo Barges","140'x45'x10-FT","140'x45'x10-FT","N/A","Push by Tug-Boat","hour",103.95]
[47,8120,"Boat, Tow","Miscellaneous 55 - Tow Boats","50' - 64'","50' - 64'","to 870","Steel","hour",518.33000000000004]
[48,8121,"Boat, Tow","Miscellaneous 60 21 - Tow Boats","50' - 64'","50' - 64'","to 1050","Steel","hour",607.29]
[49,8122,"Boat, Tow","Miscellaneous 70 30 -  Tow Boats","65' - 99'","65' - 99'","to 1350","Steel","hour",932.62]
[50,8123,"Boat, Tow","Miscellaneous 120 -  Tow Boats","100' - 124''","100' - 124''","to 2000","Steel","hour",1729.83]
[51,8124,"Airboat","815 AGIS Airboat w/spray unit",null,null,556,null,"hour",36.78]
[52,8125,"Airboat","815 AGIS Airboat w/spray unit",null,null,450,null,"hour",33.200000000000003]
[53,8126,"Swamp Buggy","ARGO Conquest 800 Outfitter",null,null,36,null,"hour",41.97]
[54,8129,"Compactor, 2-ton pavement roller","Bid-well 2450","to 76'","to 76'","to 40",null,"hour",28.55]
[55,8130,"Boat, Row","Miscellaneous Rowboat",null,null,"N/A","Heavy duty.","hour",1.0900000000000001]
[56,8131,"Boat, Runabout","Marine Equipment Runabouts - 13",null,null,60,null,"hour",13.38]
[57,8132,"Boat, Tender","Marine Equipment Tenders - 12","to 16'","to 16'","to 100","Inboard with 360 degree drive.","hour",19.45]
[58,8133,"Boat, Push","Miscellaneous 400 -  Push Boats","to 49'","to 49'","to 435","Flat hull.","hour",215.37]
[59,8134,"Boat, Push","Miscellaneous 525 - Push Boats","50' - 74'","50' - 74'","to 525","Flat hull.","hour",267.75]
[60,8135,"Boat, Push","Miscellaneous 705 - Push Boats","50' - 74'","50' - 74'","to 705","Flat hull.","hour",482.92]
[61,8136,"Boat, Push","Miscellaneous 870 - Push Boats","50' - 74'","50' - 74'","to 870","Flat hull.","hour",558.97]
[62,8137,"Boat, Debris Removal Skiff","Debris Removal Skiff","Length 48'","Length 48'","to 200","New 2023 rate","hour",164.32]
[63,8138,"Boat, Jet","Boat, Jet (Woolridge Xtra Plus Inboard)","Length 20' 4\"","Length 20' 4\"","to 100","Shallow Draft","hour",10.87]
[64,8140,"Boat, Tug","Miscellaneous 100 - Inland Tug Boats","Length 16'","16'","to 100","Shallow Draft","hour",74.2]
[65,8141,"Boat, Tug","Miscellaneous 175 - Inland Tug Boats","Length 18'","18'","to 175","With Steering Nozzle","hour",95.34]
[66,8142,"Boat, Tug","Miscellaneous 250 - Inland Tug Boats","Length 26'","26'","to 250","With Steering Nozzle","hour",134.25]
[67,8143,"Boat, Tug","Miscellaneous 380 - Inland Tug Boats","Length 40'","40'","to 380","Standard Rudder","hour",244.03]
[68,8144,"Boat, Tug","Miscellaneous 700 - Inland Tug Boats","Length 51'","51'","to 700","Twin Screw","hour",390.09]
[69,8145,"Jet Ski","Yamaha VX","Gasoline","Gasoline",null,null,"hour",9.06]
[70,8147,"Boat, Inflatable Rescue Raft","Zodiac C310 Solid 10’2″",null,"Diesel",null,null,"hour",0.93]
[71,8148,"Boat, Runabout","Marine Equipment Runabouts - 13","Gasoline","Gasoline",null,null,"hour",64.8]
[72,8149,"Boat, removable engine","2000 Johnson Outboard Motor","Gasoline","Gasoline",null,null,"hour",2.0299999999999998]
[73,8149.1,"Boat, Recreational","Outboard motor","Center console with up to 3 outboard motors","36' long",null,null,"hour",48.65]
[74,8149.2,"Boat, Recreational","Outboard motor","Center console with up to 2 outboard motors","36' long",null,null,"hour",44.02]
[75,8149.3,"Boat, Police","Length 25'","Full Cabin Boat for patrols, response, port security, law enforcement and search and rescue (SAR). Boat can be equiped with various brand and\ntupe outboard motors.","25' long",null,null,"hour",34.5]
[76,8150,"Self Propelled Pavement Brooms","Lay-Mor 6HC/8HC",null,null,"to 37",null,"hour",53.65]
[77,8151,"Broom, Pavement, Mounted","ellaneous TRAC MOUNT PTO DRIVE - ForMounting Pavement Bro","72\"","72\"",null,null,"hour",4.07]
[78,8153,"Self Propelled Pavement Brooms","Broce RC-350 (disc. 2011)","96\"","96\"","to 100","Add Prime Mover cost for total rate","hour",5.49]
[79,8154,"Broom, Pavement, Pull","Miscellaneous TRACTION PT - Pull TypePavement Brooms","84\"","84\"","to 20",null,"hour",40.44]
[80,8154.1,"Skid Steer for Broom","Bobcat 453 (disc. 2001)",null,null,null,null,"hour",24.86]
[81,8155,"Self Propelled Pavement Brooms","Terramite TSS46","6 or 8-FT broom heads",null,"to 35",null,"hour",35.65]
[82,8157,"Sweeper, Pavement","Elgin - Pelican SE","66\" & 36\" broom widths, 3.6-CY hopper",null,"to 110",null,"hour",100.34]
[83,8158,"Sweeper, Pavement","Five Star - Broom Bear","Max 120” sweep width, 4.5-CY hopper",null,"to 230",null,"hour",123.69]
[84,8180,"Bus",null,null,null,185,null,"hour",32.340000000000003]
[85,8181,"Bus",null,null,null,100,null,"hour",31.26]
[86,8182,"Bus",null,null,null,230,null,"hour",53.7]
[87,8183,"Blower",null,null,null,27,null,"hour",20.63]
[88,8183.1,"Mosquito Sprayer","Adapco - Guardian 95 ES","to 186 CFM",null,null,null,"hour",18.190000000000001]
[89,8184,"Back-pack Blower",null,null,null,null,null,"hour",7.22]
[90,8185,"Walkbehind Blower",null,null,null,13,null,"hour",2.06]
[91,8187,"Chainsaw","Bar Length = 20\"","3.0 cu in","3.0 cu in","to 3","Heavy Duty","hour",3.23]
[92,8188,"Chainsaw","Bar Length = 20\"","5.0 cu in","5.0 cu in","to 6","Heavy Duty","hour",3.65]
[93,8189,"Chainsaw","Bar Length = 20\"","6.0 cu in","6.0 cu in","to 7","Heavy Duty","hour",1.72]
[94,8190,"Chainsaw","Bar Length = 16\"","2.5 cu in","2.5 cu in","to 2","Light Duty","hour",1.71]
[95,8191,"Chainsaw","Bar Length = 25\"","7.0 cu in","7.0 cu in","to 9","Heavy Duty","hour",4.8099999999999996]
[96,8192,"Chainsaw, Pole","Bar Length = 18\"",null,null,"N/A","Hydraulic","hour",2.52]
[97,8193,"Skidder, Log","2023 DEERE 648L II",null,null,"to 237",null,"hour",113.03]
[98,8194,"Skidder, Log","2022 DEERE 748L II",null,null,"to 263",null,"hour",210.67]
[99,8195,"Cutter, Brush","2023 Barko 930B Wheel Mulcher",null,null,"to 320",null,"hour",174.37]
[100,8198,"Buncher, Cutter","Caterpillar 511 Feller Buncher","26.6 ft reach",null,"to 247",null,"hour",155.69999999999999]
[101,8199,"Log Trailer","Log Trailer (Fixed Gooseneck Trailer Level 3 40)","40 tons",null,null,null,"hour",14.41]
[102,8199.1,"Log Splitter","PowerPro 25-Ton Log Splitter",null,"Kohler SH265 196cc 6.5 Gross HP\nHorizontal Engine",6.5,"Trailer Mounted.",null,6.48]
[103,8200,"Chipper, Brush","Vermeer BC900XL Brush Chipper",null,"Material Capacity 9 in Thickness 1 in\nDiameter 33 in",35,"Trailer Mounted.","hour",24.04]
[104,8201,"Chipper, Brush","Vermeer BC1000XL Brush Chipper",null,"Material Capacity 12 in Width 20 in\nThickness .4 in\nDiameter 20 in",74,"Trailer Mounted.","hour",29.7]
[105,8202,"Chipper, Brush","Vermeer BC1500 Brush Chipper",null,"Material Capacity 15 in Width 22 in\nThickness .4 in\nDiameter 22.5 in",130,"Trailer Mounted.","hour",54.11]
[106,8203,"Chipper, Brush","Vermeer BC1800XL Brush Chipper",null,"Material Capacity 19 in Width .5 in\nThickness 26.1 in\nDiameter 36 in",173,"Trailer Mounted.","hour",74.92]
[107,8208,"Loader - Tractor - Knuckleboom","2022 Barko 595ML Crawler Mounted LogLoader","7,770 lbs (32' radius) to 38,180 lbs 12'\nradius",null,null,null,"hour",150.01]
[108,8210,"Clamshell & Dragline, Crawler","2023 TADANO MANTIS GTC 700","70 Ton Tele Crawler 118 Feet of Main Boom Cummins Diesel Engine 36\" Track Pads\nTwo Winches With 3/4 Wire Rope\nTadano AML LMI System","70 Ton","to 260","Bucket not included in rate.","hour",127.42]
[109,8211,"Clamshell & Dragline, Crawler","Tadano GT-1200XL-2","Specs - MAX. CRANE CAPACITY: 120 USt - MAIN BOOM LENGTH: 41 ft –\n167.3 ft - BOOM EXTENSION: 33.8 ft – 58.7 ft - MAX. COUNTERWEIGHT:\n55,100 lbs - OUTRIGGER BASES: 23,5 ft x 19,6 ft - HOIST LINE PULL:\n21,800 lbs - MAX RADIUS: 185 ft - MAX. MAIN BOOM LENGTH: 167.3 ft - GVM: 89,900 lbs - DIMENSIONS: 48.56 ft L x 8.5 ft W x 12.3 ft H -\nENGINE: Cummins X12","120 Ton","to 520","Bucket not included in rate.","hour",202.51]
[110,8212,"Clamshell, Truck mounted","American 5530","to 150,000 lbs",null,"to 240",null,"hour",114.56]
[111,8218,"BOMAG Compactor","BW100AD-3",null,null,"to 33",null,"hour",45.79]
[112,8219,"Compactor -2-Ton Pavement Roller","Single Drum Vibratory Compactor",null,null,null,null,"hour",33.24]
[113,8220,"Compactor, Hand Held","Miscellaneous Hand Held Vibratory Compactor",null,"to 2.9 Ton","to 28",null,"hour",15.52]
[114,8221,"Compactor, towed, vibratory drum","Blue Diamond Skid Steer Vibratory Roller | Smooth or Pad Foot","Smooth Drum Width 84\"",null,null,"Plus Skid Steer","hour",27.01]
[115,8222,"Compactor, vibratory drum","2013 BOMAG BW-120AD-4 (disc. 2013)","Drum Width 47.2\"","Drum Width 47.2\"","to 75",null,"hour",39.01]
[116,8223,"Compactor, pnuematic, wheel","BOMAG BW11-RH","68\" width",null,"to 100","Cummins 4B3.3TA 85-HP Engine","hour",114.91]
[117,8224,"Vibratory Compactor","CATERPILLAR CP-563D (disc. 2003)","Drum Width 51\"","Drum Width 51\"","to 145","Single Drum","hour",124.72]
[118,8225,"Compactor, Sanitation","Caterpiller 816",null,"12 FT Blade",284,null,"hour",197.35]
[119,8226,"Compactor, Sanitation","Caterpiller 826",null,"14 FT Blade",435,null,"hour",243.88]
[120,8227,"Compactor, Sanitation","Caterpiller 836",null,"17 FT Blade",562,null,"hour",400.69]
[121,8228,"Compactor, towed, pneumatic, wheel","Miscellaneous",null,null,"N/A","11-Wheels (Towed)","hour",14.94]
[122,8229,"Compactor, Towed Steel Drum StaticCompactor","Miscellaneous",null,null,"N/A",null,"hour",21.5]
[123,8240,"Feeder, Grizzly","Misc Vibratory Grizzly Feeder, 35\" x 14', singledeck",null,null,"to 35",null,"hour",23.01]
[124,8241,"Feeder, Grizzly","Misc Vibratory Grizzly Feeder, 52\" x 20', singledeck",null,null,"to 55",null,"hour",29.27]
[125,8242,"Feeder, Grizzly","Misc Vibratory Grizzly Feeder, 62\" x 30',double deck",null,null,"to 75",null,"hour",60.04]
[126,8250,"Dozer, crawler","CAT D1",null,null,"to 80",null,"hour",60.28]
[127,8251,"Dozer, crawler","CAT D3",null,null,"to 104",null,"hour",74.099999999999994]
[128,8252,"Dozer, crawler","CAT D4",null,null,"to 130",null,"hour",99.7]
[129,8253,"Dozer, crawler","CAT D6",null,null,"to 215",null,"hour",160.75]
[130,8254,"Dozer, crawler","CAT D8",null,null,"to 363",null,"hour",242.63]
[131,8255,"Dozer, crawler","CAT D9",null,null,"to 452",null,"hour",360.3]
[132,8256,"Dozer, crawler","CAT D11",null,null,"to 850",null,"hour",550.14]
[133,8260,"Dozer, wheel","CAT 814",null,null,"Tto 250",null,"hour",106.02]
[134,8261,"Dozer, wheel","CAT 824",null,null,"to 405",null,"hour",170.28]
[135,8262,"Dozer, wheel","CAT 834",null,null,"to 496",null,"hour",308.97000000000003]
[136,8263,"Dozer, wheel","CAT 844",null,null,"to 732",null,"hour",402.76]
[137,8269,"Box Scraper","84\" Rome Model 5C Pull Scraper","4.1 cu yd",null,null,null,"hour",18.41]
[138,8270,"Bucket, Clamshell","Heiden HC30133 Super Clamshell Bucket","1.0 CY","1.0 CY","N/A","Includes teeth. Does not include Clamshell & Dragline","hour",3.65]
[139,8271,"Bucket, Clamshell","Anvil Attachments 3 Yard Clamshell Bucket","3 CY","4 CY","N/A","Includes teeth. Does not include Clamshell & Dragline","hour",6.8]
[140,8272,"Bucket, Clamshell","Anvil Attachments 5 Yard Clamshell Bucket","5.0 CY","5.0 CY","N/A","Includes teeth. Does not include Clamshell & Dragline","hour",10.19]
[141,8273,"Bucket, Clamshell","Miscellaneous 7-1/2S","7.5 CY","7.5 CY","N/A","Does not include Clamshell &\nDragline","hour",15.09]
[142,8275,"Bucket, Dragline","Miscellaneous 2L","2.0 CY","2.0 CY","N/A","Does not include Clamshell &\nDragline","hour",3.36]
[143,8276,"Bucket, Dragline","Miscellaneous 5L","5 CY","5 CY","N/A","Does not include Clamshell & Dragline","hour",6.49]
[144,8277,"Bucket, Dragline","Miscellaneous 10L","10 CY","10 CY","N/A","Does not include Clamshell & Dragline","hour",11.81]
[145,8278,"Bucket, Dragline","Miscellaneous 14M","14 CY","14 CY","N/A","Crawler, Truck & Wheel. Includes\nbucket.","hour",16.53]
[146,8280,"Excavator, Hydraulic","Caterpillar 305 CR",null,null,"to 45","Crawler, Truck & Wheel.\nIncludes bucket.","hour",57.14]
[147,8281,"Excavator, Hydraulic","Caterpillar 313 GC",null,null,"to 90","Crawler, Truck & Wheel. Includes\nbucket.","hour",95.01]
[148,8282,"Excavator, Hydraulic","Caterpillar 320 GC",null,null,"to 150","Crawler, Truck & Wheel.\nIncludes bucket.","hour",107.93]
[149,8283,"Excavator, Hydraulic","Caterpillar 330 GC",null,null,"to 201","Crawler, Truck & Wheel.\nIncludes bucket.","hour",150.99]
[150,8284,"Excavator, Hydraulic","Caterpillar 340 GC",null,null,"to 350","Crawler, Truck & Wheel.\nIncludes bucket.","hour",291.49]
[151,8285,"Excavator, Hydraulic","Caterpillar 395",null,null,"to 550","Crawler, Truck & Wheel.\nIncludes bucket.","hour",336.18]
[152,8287,"Excavator, Truck Mounted","2008 Gradall XL 3100 III (disc. 2011)","0.57 CY","0.57 CY","to 184","Truck Mounted","hour",215.34]
[153,8288,"Excavator, Truck Mounted","2003 Gradall XL 4100 III (Disc. 2011)","0.62 CY","0.62 CY","to 238","Truck Mounted","hour",315.08]
[154,8289,"Excavator, Truck Mounted","2006 Gradall XL 5100 (disc. 2006)","1.25 CY","1.25 CY","to 230","Truck Mounted","hour",351.11]
[155,8290,"Trowel, Concrete","Husqvarna 48 in Gasoline Walk Behind Trowel","48 IN",null,"to 12","48 In","hour",5.32]
[156,8300,"Forklift","Toyota 50-8FGU30","6,000 Lbs","6,000 Lbs","to 60",null,"hour",21.18]
[157,8301,"Forklift","Toyota 50-8FG50U","11,000 Lbs","11,000 Lbs","to 90",null,"hour",24.75]
[158,8302,"Forklift","Toyota 50-8FG80U","17,500 Lbs","17,500 Lbs","to 140",null,"hour",29.06]
[159,8303,"Forklift","Taylor TE-450M (disc. 1998)","45,000 lbs","50,000 lbs","to 215",null,"hour",90.72]
[160,8306,"Fork Lift material handler","Caterpillar TL 642","6,500 lbs","6,500 LBS","to 74",null,"hour",94.49]
[161,8307,"Fork Lift material handler","Caterpillar TL 943","9,000 Lbs","9,000 Lbs","to 111",null,"hour",116.27]
[162,8308,"Fork Lift material handler","Caterpillar TL1255","12,000 lbs","12,000 lbs","to 134",null,"hour",123.49]
[163,8310,"Generator","Miscellaneous GAS 5,5 KW","5.5 KW",null,null,null,"hour",6.78]
[164,8311,"Generator","Miscellaneous DIESEL 17 KW","17 KW",null,null,null,"hour",8.1199999999999992]
[165,8312,"Generator","Miscellaneous DIESEL 25 KW","20 KW",null,null,null,"hour",28.15]
[166,8313,"Generator","Miscellaneous DIESEL 40 KW","40 KW",null,null,null,"hour",41.55]
[167,8314,"Generator","Miscellaneous DIESEL 45 KW","47.5 kW",null,null,null,"hour",42.45]
[168,8315,"Generator","Miscellaneous DIESEL 100 KW","100 KW",null,null,null,"hour",62.08]
[169,8316,"Generator","Miscellaneous DIESEL 150 KW","150 KW",null,null,null,"hour",70.760000000000005]
[170,8317,"Generator","Miscellaneous DIESEL 225 KW","210 KW",null,null,null,"hour",100.05]
[171,8318,"Generator","Miscellaneous DIESEL 300 KW","280 KW",null,null,null,"hour",119.63]
[172,8319,"Generator","Miscellaneous DIESEL 350 KW","350 KW",null,null,null,"hour",172.46]
[173,8320,"Generator","Miscellaneous DIESEL 400 KW","400 KW",null,null,null,"hour",219.49]
[174,8321,"Generator","Miscellaneous DIESEL 500 KW","500 KW",null,null,null,"hour",392.87]
[175,8322,"Generator","Miscellaneous DIESEL 700 KW","700 KW",null,null,null,"hour",578.9]
[176,8323,"Generator","Miscellaneous DIESEL 800 KW","800 KW",null,null,null,"hour",626.66]
[177,8324,"Generator","Miscellaneous DIESEL 900 KW","900 KW",null,null,null,"hour",685.25]
[178,8325,"Generator","Miscellaneous DIESEL 1000 KW","1000 KW",null,null,null,"hour",748.86]
[179,8326,"Generator","Caterpillar XQC1200 (Enclosed)","1150 KW",null,null,null,"hour",778.27]
[180,8327,"Generator","Miscellaneous DIESEL 1500 KW","1500 KW",null,null,null,"hour",844.15]
[181,8328,"Generator","Generator, 2,500 KW","2500 KW",null,null,null,"hour",983.59]
[182,8329,"Generator","Cummins QSK95 C3250D6E","3000 KW",null,null,null,"hour",1024.8800000000001]
[183,8331,"Graders","CAT 120","12 Ft","12 Ft","to 171","Includes Rigid and Articulate\nequipment.","hour",131.96]
[184,8332,"Graders","CAT 140","12 FT","12 FT","to 196","Includes Rigid and Articulate\nequipment.","hour",159.04]
[185,8333,"Graders","CAT 160","14 Ft","14 Ft","to 290","Includes Rigid and Articulate\nequipment.","hour",231.47]
[186,8334,"Graders","CAT 18","18 Ft","18 Ft","to 304","Includes Rigid and Articulate\nequipment.","hour",281.33]
[187,8335,"Widener Attachment","Loader or Grader Propelled","Widener Attachment","10' Max Spread Width",49,null,null,10.130000000000001]
[188,8350,"Hose, Discharge","Discharge Hose, 3-IN","3 In Discharge Diameter 50 foot","3 In Discharge Diameter","N/A","Per 50 foot length. Includes couplings.","hour",0.15]
[189,8351,"Hose, Discharge","Discharge Hose, 4-IN","4 in Discharge Diameter 50 foot","4 in Discharge Diameter","N/A","Per 50 foot length. Includes couplings.","hour",0.23]
[190,8352,"Hose, Discharge","Discharge Hose, 6-IN","6 In Discharge Diameter 50 foot","6 In Discharge Diameter","N/A","Per 50 foot length. Includes couplings.","hour",0.57999999999999996]
[191,8353,"Hose, Discharge","Discharge Hose, 8-IN","8 In Discharge Diameter 50 foot","8 In Discharge Diameter","N/A","Per 50 foot length. Includes couplings.","hour",0.65]
[192,8354,"Hose, Discharge","Discharge Hose, 12-IN","12 In Discharge Diameter","12 In Discharge Diameter","N/A","Per 50 foot length. Includes couplings.","hour",0.95]
[193,8355,"Hose, Discharge","Discharge Hose, 16-IN","16 In Discharge Diameter","16 In Discharge Diameter","N/A","Per 50 foot length. Includes couplings.","hour",1.79]
[194,8356,"Hose, Suction","Suction Hose - SH-3/25","3 In Diameter","3 In Diameter","N/A","Per 50 foot length. Includes couplings.","hour",0.27]
[195,8357,"Hose, Suction","Miscellaneous SH-4/25","4 In Diameter","4 In Diameter","N/A","Per 50 foot length. Includes couplings.","hour",0.32]
[196,8358,"Hose, Suction","Miscellaneous SH-6/25","6 In Diameter","6 In Diameter","N/A","Per 50 foot length. Includes couplings.","hour",1.06]
[197,8359,"Hose, Suction","Suction Hose, 8-IN","8 In Diameter","8 In Diameter","N/A","Per 50 foot length. Includes couplings.","hour",1.1399999999999999]
[198,8360,"Hose, Suction","Suction Hose, 12-IN","12 In Diameter","12 In Diameter","N/A","Per 50 foot length. Includes couplings.","hour",1.72]
[199,8361,"Hose, Suction","Suction Hose, 16-IN","16 In Diameter","16 In Diameter","N/A","Per 50 foot length. Includes couplings.","hour",3.25]
[200,8380,"Loader, Crawler","Bobcat MT120",null,null,"to 25","Includes bucket.","hour",36.92]
[201,8381,"Loader, Crawler","Bobcat T450",null,null,"to 55","Includes bucket.","hour",41.49]
[202,8382,"Loader, Crawler","Bobcat T86",null,null,"to 105","Includes bucket.","hour",62.38]
[203,8383,"Loader, Crawler","Caterpillar 963C 2022","3.2 cu yd","3 CY","to 178","Includes bucket.","hour",197.79]
[204,8384,"Loader, Crawler","Caterpillar 973C (disc. 2010)","4.19 cu yd","4 CY","to 238","Includes bucket.","hour",254.71]
[205,8390,"Loader, Wheel","Gehl 280 (disc. 2009)","0.7 cu yd","0.5 CY","to 38",null,"hour",36.72]
[206,8391,"Loader, Wheel","Bobcat L85",null,null,"to 68","Includes bucket.","hour",58.08]
[207,8392,"Loader, Wheel","Caterpillar 910",null,null,"to 110","Includes bucket.","hour",64.66]
[208,8393,"Loader, Wheel","Caterpillar 926",null,null,"to 170","Includes bucket.","hour",116.74]
[209,8394,"Loader, Wheel","Deere 644K - 4WD (disc. 2019)","4.2 cu yd","4 CY",232,null,"hour",116.87]
[210,8395,"Loader, Wheel","Case 921C - 4WD (disc. 2008)","5.0 cu yd","5 CY",255,null,"hour",163.19999999999999]
[211,8396,"Loader, Wheel","Caterpillar 950",null,null,"to 250","Includes bucket.","hour",139.80000000000001]
[212,8397,"Loader, Wheel","Caterpillar 972",null,null,"to 339","Includes bucket.","hour",143.78]
[213,8398,"Loader, Wheel","Caterpillar 988",null,null,"to 580","Includes bucket.","hour",341.25]
[214,8399,"Tractor, Wheel","John Deere 6605 (disc. 2005)","100 IN.","100 IN.","to 95","Does not include mower attachment. Flail Industrial towed mower would add $4.96/Hour","hour",70.760000000000005]
[215,8400,"Tractor, Wheel","New Holland T6030 (disc. 2012)",null,null,"to 115","Tractor - agriculture all purpose","hour",90.92]
[216,8401,"Loader, Tractor, Wheel","Case 580 SUPER L (disc. 2000)","0.87 CY","0.87 CY","to 80",null,"hour",92.56]
[217,8410,"Mixer, Concrete Portable","Menegotti Concrete Mixer Wheelbarrow Concrete Mixer","5.0 cu ft","5.0 CF",0.5,null,"hour",1.95]
[218,8411,"Mixer, Concrete, Trailer Mntd","TK Equipment  Hydraulic Mortar Mixer w/ Honda Engine","MODELMM12\nBatch Capacity bags 3 1/2 - 4 bags Total Capacity cu. ft. (Lt) 3.29 cu. ft (376) Mixing Capacity cu.ft. (Lt) 12 cu.ft (340)","12 CF","to 5",null,"hour",8]
[219,8412,"Mixer, Concrete, Trailer Mntd","TK Equipment  Hydraulic Mortar Mixer w/ Honda Engine","MODELHM 16\nBatch Capacity Bags 4 - 5½ bags Capacity Cu. Ft. (lts)16 cu.ft  (453)","16 CF","to 13",null,"hour",17.489999999999998]
[220,8414,"Truck, Concrete Mixer","FREIGHTLINER 114SD with Cummins X12 455V diesel engine","11 CY Mixer",null,"350 to 500",null,"hour",81.760000000000005]
[221,8419,"Breaker, Pavement Hand-held","Miscellaneous STANDARD 25-30 LBS","80 - 90 Lbs","90 Lbs","N/A","Includes bucket.","hour",1.18]
[222,8420,"Breaker, Pavement","Arrow Master 1350",null,null,"to 80","Includes bucket.","hour",60.79]
[223,8421,"Vibrator, Concrete","2-7/21","2.5 in head, 16 ft shaft",null,"to 2","Electric Powered","hour",2.58]
[224,8423,"Spreader, Chip","2010 Etnyre Quad Chip Spreader","2.8 CY","2.8 CY","to 260",null,"hour",105.39]
[225,8424,"Spreader, Chip","2019 Rosco CSV","3.5 CY","3.8 CY","to 275",null,"hour",150.91]
[226,8425,"Spreader, Chip, Mounted","8-CONVEYOR - Chip Spreaders for Tail GateMounting","8 Ft","8 Ft","to 8","Includes bucket.","hour",4.07]
[227,8430,"Paver, Asphalt, Towed","Layton F-525","96-144 in screed width",null,"N/A","Includes bucket.","hour",12.44]
[228,8431,"Paver, Asphalt","Caterpillar AP 455 Track","Paving Range with SE47 FM\n2.4 m - 5.9 m (8' - 19' 6\")\nOperating weight with SE47 FM 31533 lb\nMaximum Throughput Capacity\n853 ton(US)/h",null,120,null,"hour",262.70999999999998]
[229,8432,"Paver, Asphalt","Caterpillar AP 555 Track","Paving Range with SE47 FM\n2.4 m - 6.1 m (8' - 20')\nOperating weight with SE47 FM 33689 lb\nMaximum Throughput Capacity\n1100 ton(US)/h",null,148,null,"hour",271.01]
[230,8433,"Paver, Asphalt","Caterpillar AP 655 Track","Paving Range with SE47 FM\n2.44 - 6.25 m (8' - 20' 6\")\nOperating weight with SE47 FM 40560 lb\nMaximum Throughput Capacity\n1433 ton(US)/h",null,173,null,"hour",308.47000000000003]
[231,8434,"Paver, Asphalt","Caterpillar AP 500 Wheel","Paving Range with SE47 FM\n2.4 m - 5.9 m (8' - 19' 6\")\nOperating weight with SE47 FM 32012 lb\nMaximum Throughput Capacity\n1100 ton(US)/h",null,148,null,"hour",274.31]
[232,8435,"Paver, Asphalt","Caterpillar AP 1000 Wheel","Paving Range with SE60 FM 3 m - 7.8 m (10' - 25' 6\")\nOperating weight with SE60 FM 42620 lb\nMaximum Throughput Capacity\n1766 ton(US)/h",null,225,null,"hour",295.49]
[233,8436,"Pickup, Asphalt","Cadarapids CR-MS-4 (disc. 2020)",null,null,"to 120","Includes bucket.","hour",135.80000000000001]
[234,8437,"Pickup, Asphalt","Cedarapids CR MS-2",null,null,"to 120","Includes bucket.","hour",193.47]
[235,8438,"Pickup, Asphalt","Blaw Knox MC330 (disc. 2007)",null,null,"184 to 200","Includes bucket.","hour",303.18]
[236,8439,"Pickup, Asphalt","Roadtec MTV-1000C",null,"MTV 1000C","to 275","Includes bucket.","hour",472.05]
[237,8440,"Striper, Self Propelled","Graco LineLazer 3400 Airless Line Striper","Single Bucket","15 Gallon Bucket","to 5","Includes bucket.","hour",14.75]
[238,8441,"Striper, Self Propelled","Graco LineLazer V 200DC Standard Line Striper, Dua","Dual Bucket","2x10 Gallon Buckets","to 6.5","Includes bucket.","hour",23.62]
[239,8442,"Striper, Self Propelled","Graco LineLazer V 250DC","Dual Bucket","2x25 Gallon Buckets","to 13","Includes bucket.","hour",45.28]
[240,8445,"Striper, Truck Mounted","RoadLazer RoadPak HD System, Option HD3: 2-Pump, 1350 lb Bea","1,350-pound bead tank","1,350-pound bead tank","to 19","Includes bucket.","hour",43.79]
[241,8447,"Paver Accessory - Belt Extension","Miscellaneous 30 X 60'","30\" x 60'","30\" x 60'","N/A","Includes bucket.","hour",28.48]
[242,8450,"Plow, Snow, Mounted Grader","VP-10 - Grader Snow Removal Equipment","126 in (10.5-FT)","to 10 Ft","N/A","8331 Grader not included","hour",19.690000000000001]
[243,8451,"Plow, Snow, Mounted Grader","SW-14 - Grader Snow Removal Equipment","168 in (14-FT)","to 14 Ft","N/A","8332 Grader not included","hour",23.66]
[244,8452,"Plow, Truck Mounted","One Way Plow","13 Ft","to 15 Ft","N/A","8722 truck not included","hour",13.8]
[245,8453,"Plow, Truck Mounted","V-Plow R11 Leveling Wing","11 Ft","to 15 Ft","N/A","With leveling wing. Include 8722 truck for total cost","hour",29.92]
[246,8455,"Spreader, Sand","TAILGATE","Tailgate, Chassis mounted","Tailgate, Chassis","PTO","Truck not included","hour",5.6]
[247,8456,"Spreader, Sand","DUMP BODY","Dump Body mounted","Dump Body","PTO","Truck not included","hour",7.73]
[248,8457,"Spreader, Sand","TRUCK MNT","Truck Mounted, (10yd)","Truck (10yd)","N/A","Truck not included","hour",10.47]
[249,8458,"Spreader, Chemical","Miscellaneous 5 Spreader","5.0 cu yd","5 CY","to 4","Trailer & truck mounted.","hour",6.47]
[250,8465,"Pump, Trash Pump","6\" Diesel Trash Pump Trailer Mount","6 In Pump","6 In Pump","to 23","High flow trash pump delivers up to 59,400GPH","hour",56.67]
[251,8466,"Pump, Trash Pump","4\" Diesel powered Trash Pump","4 In Pump","4 In Pump","to15","High flow trash pump delivers up to 37,200GPH","hour",27.38]
[252,8467,"Pump, Trash Pump","3\" Diesel powered Trash Pump","3 In Pump","3 In Pump","to 5","High flow trash pump delivers up to\n18,000GPH","hour",13.06]
[253,8468,"Pump, Trash Pump","2\" Diesel powered Trash Pump","2 In Pump","2 In Pump","to 5","High flow trash pump delivers up to\n12,000GPH","hour",9.31]
[254,8469,"Pump - Stormwater Custom","Catepillar/Lufkin/Fairbanks-Morse","1740 CFS",null,5400,null,"Hour",1743.1]
[255,8470,"Pump, Lightweight Centrifugal","6M Alum./PORT.","1.5 In pump","2 In pump - 10,000 gal/hr.","to 4.5","6,500 gph, Hoses not included.","hour",3.1]
[256,8471,"Pump, Lightweight Centrifugal","8M Alum./PORT.","2 In Pump","2 In Pump - 3,000 gal/hr.","to 6","3,000 gph, Hoses not included.","hour",3.09]
[257,8472,"Pump, Lightweight Centrifugal","18M ALUM./PORT.","3 In Pump","3 In Pump - 18,000 gal/hr.","to 10","18,000 gph, Hoses not included.","hour",2.4300000000000002]
[258,8473,"Pump, Heavy Duty Centrifugal","20M GASOLINE ELECTRIC START","3 In Pump",null,15,null,"hour",9.18]
[259,8474,"Pump, Electric Submersible","Miscellaneous 4  Three Phase 25 HP","4 In Pump","4 In Pump","to 25","Hoses not included.","hour",8.1999999999999993]
[260,8475,"Pump, Electric Submersible","Miscellaneous 6  Three Phase 35 HP","6 In Pump",null,null,null,"hour",18.43]
[261,8476,"Pump, Centrifugal","40M GASOLINE ELECTRIC START","4 In Pump","4 In Pump","to 60","40,000 gph, Hoses not included.","hour",25.62]
[262,8477,"Pump, Centrifugal","90M GASOLINE ELECTRIC START Pump","6 In Pump","6 In Pump","to 95","90,000 gph, Hoses not included.","hour",33.54]
[263,8478,"Pump, Centrifugal","350M DIESEL ELECTRIC START Pump","12 In Pump","12 In Pump","to 140","350,000 gph, Hoses not included.","hour",34.82]
[264,8486,"Aerial Lift, Truck Mounted","LTEC AA55 MOUNTED ON 2024 FREIGHTLINER BUSINESS CLASS","Ground to Bottom of Platform*5: 5.1 ft (16.8 m) Maximum Side Reach:43.1 ft (13.1 m)\nBoom Articulation (Lower Boom)0:  to 120°\nRotationC: ontinuous","55 FT",null,"Including Truck","hour",62.86]
[265,8487,"Aerial Lift, Truck Mounted","LTEC AH85B MOUNTED ON 2024 FREIGHTLINER BUSINESS CLASS","Ground to Bottom of Platform*8: 0 ft (24.4 m) Maximum Side Reach:48 ft (14.6 m)\nBoom Articulation (Lower Boom)0:  to 95°\nRotationC: ontinuous","80 FT",null,"Including Truck","hour",65.87]
[266,8488,"Aerial Lift, Truck Mounted","LTEC AN67-E100 MOUNTED ON 2018 INTERNATIONAL WORKSTA","Ground to Bottom of Platform*100 ft (30.5 m) Maximum Side Reach:52.7 ft (16.1 m)\nBoom Articulation (Lower Boom)0:  to 120°\nRotationC: ontinuous","100 FT",null,"Including Truck","hour",68.03]
[267,8489,"Aerial Lift, Truck Mounted","LTEC AH125 MOUNTED ON 2018 FREIGHTLINER BUSINESS CLASS","Ground to Bottom of Platform*:120 ft (36.6 m) Maximum Side Reach5: 0.4 ft (15.4 m)\nBoom Articulation (Lower Boom)0:  to 87°\nRotationC: ontinuousRotationC: ontinuous","120 FT",null,"Including Truck","hour",78.430000000000007]
[268,8490,"Aerial Lift, Self Propelled","JLG 340AJ Articulating Boom Lift","Horizontal Outreach:19–ft 11–in Platform Capacity Unrestricted:500–lb\nMax Platform Height:33–ft 10–in","33 FT",25,null,"hour",38.270000000000003]
[269,8491,"Aerial Lift, Self Propelled","JLG 450AJ HC3 Articulating Boom Lift","Horizontal Outreach: 25–ft 0–in Max Platform Capacity: 1,000–lb Max Platform Height: 45–ft 0–in","45 FT",60,null,"hour",48.28]
[270,8492,"Aerial Lift, Self Propelled","JLG 600AJ HC3 Articulating Boom Lift","Horizontal Outreach: 40–ft 6–in\nMax Platform Capacity: 1,000–lb Max Platform Height: 60–ft 0–in","60 FT",84,null,"hour",59.1]
[271,8493,"Aerial Lift, Self Propelled","JLG 800AJ HC3 Articulating Boom Lift","Horizontal Outreach: 52–ft 3–in Max Platform Capacity: 1,000–lb Max Platform Height: 80–ft 4–in","80 FT",84,null,"hour",65.19]
[272,8494,"Aerial Lift, Self Propelled","JLG 1250AJP Articulating Boom Lift","Horizontal Outreach: 63–ft 2–in Max Platform Capacity: 1,000–lb\nMax Platform Height: 125–ft 8–in","125 FT",75,null,"hour",151.13]
[273,8495,"Aerial Lift, Self Propelled","JLG 1500AJP Articulating Boom Lift","Horizontal Outreach: 75–ft 0–in Max Platform Capacity: 1,000–lb\nMax Platform Height: 150–ft 0–in","150 FT",100,null,"hour",176.48]
[274,8496,"Crane, Truck Mounted","2025 MANITEX 1970C MOUNTED ON 2025 PETERBILT 537","19,000 LBS","19,000 LBS","to 240",null,"hour",48.09]
[275,8497,"Crane, Truck Mounted","2024 MANITEX 2281T MOUNTED ON 2024 PETERBILT 567","46,000 LBS","46,000 LBS","to 510",null,"hour",53.07]
[276,8498,"Crane, Truck Mounted","2024 MANITEX 30100C MOUNTED ON 2024 PETERBILT 548","60,000 LBS","60,000 LBS","to 510",null,"hour",83.67]
[277,8500,"Crane, Yard","2013 SHUTTLELIFT CD5520","20 ton capacity","20 ton capacity","to 100",null,"hour",113.69]
[278,8501,"Crane, Rough Terrain","Broderson RT-300-2C","29983 lbs/15 tons",null,155,null,"hour",293.14]
[279,8502,"Crane, All Terrain","2007 GROVE GMK2035E","69886 lbs/34.9 tons",null,157,null,"hour",226.1]
[280,8503,"Crane, All Terrain","2006 GROVE GMK3055","119931 lbs/60 tons",null,349,null,"hour",285.76]
[281,8504,"Crane, Crawler Mounted Lattice Boom","American HC-125 (disc. 2004)","250004 lbs/125 tons",null,245,null,"hour",338.94]
[282,8510,"Saw, Concrete","Miscellaneous 4.6-14MC","14 In","14 In","to 14",null,"hour",12.69]
[283,8511,"Saw, Concrete","Diamond CC6571D DIESEL LIQUID COOLED WALK BEHIND SAW","Interchangable Blade","14 to 42 IN","to 71",null,"hour",27.6]
[284,8512,"Saw, Concrete","Diamond CC9074DK Deep Cut Saw","60 IN","60 IN","to 74",null,"hour",50.69]
[285,8514,"Chain Trencher, Wheel Mounted","Vermeer V120","60 in depth","31 in depth","to 116","60 in depth. Now saved in EW as V120.","hour",286.18]
[286,8517,"Jackhammer (dry)","Miscellaneous 25DRY","25 lbs",25,"Air","Pneumatic Powered","hour",1.64]
[287,8518,"Jackhammer (wet)","Miscellaneous 30WET","30 lbs",30,"Air","Pneumatic Powered","hour",1.68]
[288,8521,"Scraper","Caterpillar 631 (2019)","34 yard",null,"to 570","Includes bucket.","hour",341.78]
[289,8522,"Scraper","Caterpillar 651","44 yard",null,"to 629","Includes bucket.","hour",504.75]
[290,8524,"Scraper","Caterpillar 621 (2012)","24 yard",null,"to 407","Includes bucket.","hour",221.18]
[291,8540,"Loader, Skid Steer","Bobcat S70",null,null,"to 24","Includes bucket.","hour",31.06]
[292,8541,"Loader, Skid Steer","Bobcat S76",null,null,"to 74","Includes bucket.","hour",45.23]
[293,8542,"Loader, Skid Steer","Bobcat S86",null,null,"to 105","Includes bucket.","hour",60.67]
[294,8549,"Snow Plower, Salt Spreader","Henderson FSH-I Spreader","8.9 CY","8.9 CY",3.5,"Includes bucket.","hour",16.96]
[295,8550,"Snow Blower, Truck / loader Mounted","WAUSAU SNOGO LR-44","114 in Cutting Width","114 in Cutting Width",325,null,"hour",83.95]
[296,8551,"Snow Blower, Truck Mounted","WAUSAU SNOGO 2000","102 in Cutting Width","102 in Cutting Width",218,null,"hour",111.34]
[297,8552,"Snow Blower, Truck Mounted","WAUSAU SNOGO 3000","114 in Cutting Width","114 in Cutting Width",300,null,"hour",136.97999999999999]
[298,8553,"Snow Blower, Truck Mounted","WAUSAU SNOGO 4000","120 in Cutting Width","120 in Cutting Width",400,null,"hour",162.44]
[299,8558,"Snow Thrower, Walk Behind","Toro Power Max® 826 OE (37780)","40 ft throwing distance",null,5,"Includes bucket.","hour",3.69]
[300,8559,"Snow Thrower, Walk Behind","Toro 74523 MultiForce 60-in Blower",null,null,"TO 25",null,"hour",16.79]
[301,8559.1,"SnowBroom","Oshkosh H-2518 Airport Runway Sweeper with 18' MB sweeper head",null,null,"450-500",null,"hour",246.37]
[302,8560,"Snow Blower, Self Propelled","RPM Tech TM36R Self-Propelled Snow Blower","3,500 Ton / hr","3,500 Ton / hr","to 385",null,"hour",189.9]
[303,8561,"Snow Blower, Self Propelled","RPM Tech TM42R Self-Propelled Snow Blower","4,800 Ton / hr","4,800 Ton / hr","to 450",null,"hour",171.31]
[304,8561.1,"Snow Blower","MTE Snow Mauler",null,null,null,null,"hour",317.58999999999997]
[305,8561.2000000000007,"Snow Blower","Vammas PSB 4500MTE",null,null,null,null,"hour",331.33]
[306,8563,"The Vammas 4500","Snow Remover","Working width 4.5 m",null,385,"Includes bucket.","hour",298.64]
[307,8564,"The Vammas 5500","Snow Remover","Working width 5.5 m",null,460,"Includes bucket.","hour",328.24]
[308,8565,"Oshkosh Pavement Sweeper","2005 Oshkosh H-Series Runway Broom (Model HB-2723)",null,null,420,"Includes bucket.","hour",245.82]
[309,8569,"Dust Control De-ice Unit","Hydro Pump with 100-ft of 1/2-in hose",null,null,null,null,"hour",4.6900000000000004]
[310,8572,"Loader-Backhoe, Wheel","CAT Center-Pivot Backhoe Loader420","Net Power - SAE J1349\n92 HP (68 kW) / 103 HP (76 kW)\nDig Depth - Standard 14 ft\nOperating Weight - Maximum\n24251 lb","14 FT",103,null,"hour",110.03]
[311,8573,"Loader-Backhoe, Wheel","CAT Center-Pivot Backhoe Loader450","Net Power - SAE J1349:2011\n131 hp\nDig Depth - Standard 17 ft\nOperating Weight - Maximum\n29321 lb","17 FT",131,null,"hour",128.68]
[312,8580,"Distributor,  Asphalt","2008 LEEBOY L500","550 gal","550 gal",16,null,"hour",14.97]
[313,8581,"Distributor,  Asphalt","Miscellaneous 1000G","1000-gal","1000-gal",38,null,"hour",33.08]
[314,8582,"Distributor,  Asphalt","Miscellaneous 2000G","2000-gal","2000-gal",null,"PTO","hour",32.92]
[315,8583,"Distributor,  Asphalt","Miscellaneous 4000G","4000-gal","4000-gal",null,"PTO","hour",58.07]
[316,8584,"Distributor","Etnyre Chip Spreader","13-FT","13-FT","to 210",null,"hour",129.06]
[317,8590,"Trailer, Rear Dump","25DU-20 BIG TEX 20′ DUMP TRAILER 13 TON 25,000 GVWR 8×20","23.7 CY Dump Trailer",null,"N/A",null,"hour",9]
[318,8591,"Trailer, Rear Dump","2016 East EAST MANUFACTURING CORP End Dump Trailer","30 CY Dump Trailer",null,"N/A",null,"hour",17.18]
[319,8600,"Trailer, Equipment","2025 Big Tex Trailers 16TL Super Duty Tilt Bed Equipment Trailer","Width: 83\"\nLength: 20', 22'\nGVWR: 17,500 lbs\nCargo Capacity: 12,560—13,420 lbs",null,null,null,"hour",13.61]
[320,8601,"Trailer, Equipment","Kaufman Trailers tri-axle","30 FT, 62,000 GVWR",null,null,null,"hour",15.8]
[321,8602,"Trailer, Equipment","Miscellaneous DROP 3 60","60 ton",null,"N/A",null,"hour",21.05]
[322,8603,"Trailer, Equipment","Miscellaneous FLUSH 4 120","120 ton",null,"N/A",null,"hour",33.950000000000003]
[323,8610,"Trailer, Water","Miscellaneous 1200 4000","4000 gallon",null,"N/A",null,"hour",17.09]
[324,8611,"Trailer, Water","Miscellaneous 1200 6000","6000 gallon",null,"N/A",null,"hour",24.45]
[325,8612,"Trailer, Water","Miscellaneous 1500 10000","10000 gallon",null,"N/A",null,"hour",30.77]
[326,8613,"Trailer, Water","Miscellaneous 1500 14000","14000 gallon",null,"N/A",null,"hour",37.74]
[327,8614,"Truck - Water Tanker","FREIGHTLINER BUSINESS CLASS M2 106 PLUS","4000 galon tank",null,"to 300",null,"hour",45.16]
[328,8621,"Tub Grinder","Morbark 1000 Tub Grinder","up to 40 ton per hour",null,"to 577",null,"hour",165.82]
[329,8622,"Tub Grinder","Morbark 1300 Tub Grinder","up to 80 ton per hour",null,"to 1050",null,"Hour",249.83]
[330,8623,"Tub Grinder","Morbark 1600 Tub Grinder","up to 190 ton per hour",null,"to 1200",null,"hour",352.95]
[331,8627,"Horizontal Grinder","Vermeer HG6000 Horizontal Grinder",null,null,630,null,"hour",96.28]
[332,8628,"Stump Grinder","2021 Vermeer SC852","23 IN Cutterwheel Diameter",null,74,null,"hour",55.28]
[333,8629,"Stump Grinder","2024 Vermeer SC1052","26 IN Cutterwheel Diameter",null,115,null,"hour",56.33]
[334,8630,"Sprayer, Seed","Reinco HG-5-HA, Trailer Mounted",null,null,20,null,"hour",10.07]
[335,8631,"Sprayer, Seed","Reinco HG-10GXA2, Trailer Mounted",null,null,35,"Single Drum","hour",22.28]
[336,8632,"Sprayer, Seed","Reinco HG-30GX, Truck Mounted",null,null,115,null,"hour",50.34]
[337,8633,"Mulcher, Trailer Mntd","Finn B70",null,null,33.5,null,"hour",22.32]
[338,8634,"Mulcher, Trailer Mntd","Reinco M65",null,null,54,null,"hour",27.99]
[339,8635,"Mulcher, Trailer Mntd","Reinco M90",null,null,115,null,"hour",41.38]
[340,8636,"Scraper","Wirtgen WR2400",null,null,563,null,"hour",492.02]
[341,8637,"Trailer (Off Highway Bottom Dump)","Load King 2842","28.0 cu yd",null,null,null,"hour",25.3]
[342,8638,"Rake","Barber Beach Sand Rake 600HD","15 feet (5m)",null,null,null,"hour",18.73]
[343,8639,"Chipper","Wildcat 626 Cougar",null,null,null,null,"hour",42.44]
[344,8640,"Trailer, Office","Miscellaneous 8X24",null,null,null,null,"hour",1.99]
[345,8641,"Trailer, Office","7×12 Office Trailer",null,null,null,null,"hour",2.4300000000000002]
[346,8642,"Trailer, Office","0′ Mobile Office Command Trailer w/ AC/Heat (Bathroom Optional)",null,null,null,null,"hour",14.9]
[347,8644,"Trailer, Covered Utility Trailer","7-ft x 16-ft",null,null,null,null,"hour",6.29]
[348,8645,"Trailer, Shower","12 Station Portable Restrooms Trailer | Luxury Series",null,null,null,null,"hour",44.99]
[349,8650,"Trencher","Seaman-Parsons T20",null,null,20,null,"hour",49.22]
[350,8651,"Trencher","Seaman-Parsons T500",null,null,58,null,"hour",72.37]
[351,8652,"Trencher/Ditcher","New Holland B115B (disc. 2012)","1.5CY","1.5CY",108,null,"hour",73.5]
[352,8653,"Trencher/Ditcher","New Holland T8.330 (disc. 2014)",null,null,284,null,"hour",151.12]
[353,8654,"Trench Burner","Through-Pu average 10 to 12 Tons per hour","McPherson Systems air curtain destructor","nozzle length- 30 foot.",75,null,"hour",20.79]
[354,8660,"Plow, Cable","Case MAXI-SNEAKER C (disc. 2003)","24-in","24-in",33.5,null,"hour",18.739999999999998]
[355,8661,"Plow, Cable","Seaman-Parsons DP-60","18-in","18-in",82,null,"hour",57.52]
[356,8662,"Plow, Cable","Seaman-Parsons DP-100","42-in","42-in",110,null,"hour",64.42]
[357,8670,"Derrick, Hydraulic Digger","Miscellaneous 60/12- Hydraulic DiggerDerricks",null,null,null,null,"hour",27.09]
[358,8671,"Derrick, Hydraulic Digger","Miscellaneous 990/14 - Hydraulic DiggerDerricks",null,null,null,null,"hour",47.61]
[359,8672,"Movax SP-60","28-32 ton Head",null,null,178,null,"hour",134.97999999999999]
[360,8673,"Truck, Concrete Mixer","Mixer Capacity = 13 cy","13-CY","13-CY",285,"Saved in EW as 8680-1. Somehow was changed from Truck, Fire Aerial Platform to concrete mixer.","hour",93.46]
[361,8680,"Truck, Fire, Engine Type 1","KME K-180 Side Mount Pumper","Waterous CSU 1500 GPM FRC InControl Pressure Governor\n1000 Gallons Water\n20 Gallons Foam\nPre-Connects: (2) 1-3/4” Crosslays, (1) 2-1/2” Crosslay and 1-1/2” Front\nTrashline\nDischarges: (1) 2-1/2” Left, Right and Rear, (1) LDH Discharge right, Deck\nGun\nTFT Extenda-Gun on Deluge Riser UPF Water Tank","Pump GPM:1500\nTank Size:1000 GA","to 500",null,"Hour",162.44]
[362,8681,"Truck, Fire, Engine Type 2","Freightliner","Hale QMAX 1500 GPM Top-Mount Pump 1500 Gallon Polypropylene Tank Driver's Side Discharges: (2) 2 1/2\"\nFront Discharges: (1) 2\"\nCrosslays/Speedlays: Crosslays: (2) 1 3/4\"\nOfficer's Side Discharge: (2) 2 1/2\"\nRear Discharges: (1) 2 1/2\"\nDriver's Side Suction: (1) 2 1/2\", (1) 6\"\nOfficer's Side Suction: (1) 2 1/2\", (1) 6\" Deck Gun Included","Pump GPM:1500\nTank Size:1500 GA",350,null,"Hour",115.72]
[363,8682,"Truck, Fire, Engine Type 3","Freightliner",null,"Pump GPM:500\nTank Size:500 GA",350,null,"hour",90.66]
[364,8683,"Truck, Fire, Engine Type 4","International",null,"Pump GPM:50-250\nTank Size:800 GA",350,null,"hour",81.58]
[365,8684,"Truck, Fire, Type 5, 6 & 7","Cummins 6.7L Diesel EngineAisin AS69RC Automatic Transmission","Pump & Tank\nHale HPX200 160 GPM Pump 450 Gallon Tank\n12 Gallon Foam Cell","Pump GPM:160\nTank Size:450 GA",350,null,"hour",82.87]
[366,8685,"Truck, Fire, Aerial Ladder","107' Heavy-Duty Aerial Ladder","Flow Capacity1,500 gpm\nHosebed Capacity1,000' of 5\" or split load 700' of 5\" & 600' of 3\" hose Ladder ComplementMinimum of 115'\nLadder Reach107' Vertical / 100' Horizontal Operating Range-10° to 77°\nPayload Capacity750 lb dry / 500 lb wet Pump RangeWaterous, Hale, Darley Midship, PTO\nTankUp to 500 gallons\nWind or Ice RatingsUp to 50 mph winds and 1/4\" of ice",null,500,null,"hour",260.51]
[367,8686,"Truck, Fire, Aerial Platform","110' Heavy-Duty Aerial Platform","Flow Capacity1,250 gpm (4,732 L/m)\nHosebed Capacity1,000' (304.8m) of 5\" (12.7cm) or split load 700' (213.4m) of 5\" (12.7cm) & 600' (182.9m) of 3\" (7.6cm) hose Ladder ComplementMinimum of 115' (35.1m)\nLadder Reach110' (33.5m) Vertical / 90' (27.4m) Horizontal Operating Range-10° to 77°\nPayload Capacity750 lb dry / 500 lb wet (340kg dry/227kg wet) Pump RangeWaterous, Hale, Darley Midship, PTO\nTankUp to 500 gallons (1,892L)\nWind or Ice RatingsUp to 35 mph (56 km/h) winds and .25\" (.64cm) of ice",null,500,null,"hour",346.39]
[368,8687,"Truck, Fire, Articulating Boom","55' or 61' reach (16.76m or 18.59m)","Flow Capacity1,000 gpm (3,785 L/m)Hosebed CapacityVaries depending on configuration\nLadder ComplementMinimum of 48'Ladder Reach55' or 61' (16.76m  or 18.59m) Vertical / 45'5\" or 51' (13.84m or 15.55m) Horizontal Operating Range-5° to 85°Payload Capacity500 lb dry / 250 lb wet Pump RangeWaterous, Hale, Darley Midship, PTOTankVaries\ndepending on configuration\nWind or Ice RatingsUp to 20 mph (32km/hr) winds and 1/4\" (.64cm) of ice",null,500,null,"hour",260.51]
[369,8688,"Truck, Fire, Tractor Ladder","107' Heavy-Duty Tiller Aerial Ladder","Flow Capacity1,500 gpmHosebed Capacity1,000' of 5\" Ladder ComplementUp to 250' (depending on configuration)ladder\nReach107' Vertical / 100' Horizontal\nOperating Range-10° to 77°Payload Capacity750 lb dry / 500 lb wet Pump RangeWaterous, Hale, Darley Midship, PTOTankUp to 300\ngallons\nWind or Ice RatingsUp to 50 mph winds and 1/4\" of ice",null,500,null,null,289.13]
[370,8689,"Truck, Fire, Support Water Tender S1","al HV 613 with an International A-26 engine, 450 HP, and 1750 lb.ft of torque.",null,"Tank Min Capacity (Gal): 4000 Pump Min Flow (GPM): 300 PSI: 50\nMax Refill Time (Mins): 30",450,null,"hour",116.08]
[371,8690,"Truck, Fire, Support Water Tender S2","F-L M2 106, 360EV HP, 2 Door, Single Axl",null,"Tank Min Capacity (Gal): 2500 Pump Min Flow (GPM): 200 PSI: 50\nMax Refill Time (Mins): 20",360,null,"hour",99.79]
[372,8691,"Truck, Fire, Support Water Tender S3","F-L M2 106, 360EV HP, 2 Door, Single Axl",null,"Tank Min Capacity (Gal): 1000 Pump Min Flow (GPM): 200 PSI: 50\nMax Refill Time (Mins): 15",360,null,"hour",107.7]
[373,8692,"Truck, Fire, Tactical Water Tender T1","INTL HV 507 SFA",null,"Tank Min Capacity (Gal): 2000 Pump Min Flow (GPM): 250 PSI: 150",350,null,"hour",98.04]
[374,8693,"Truck, Fire, Tactical Water Tender T2","INTL HV 507 SFA",null,"Tank Min Capacity (Gal): 1000 Pump Min Flow (GPM): 250 PSI: 150",350,null,"hour",97.76]
[375,8700,"Truck, Flatbed","Miscellaneous 4X2 15KGVW DSL",null,null,200,null,"hour",33.369999999999997]
[376,8701,"Truck, Flatbed","Miscellaneous 4X2 25KGVW GAS",null,null,275,null,"hour",50.9]
[377,8701.1,"Truck, Flatbed","Miscellaneous 4X2 25KGVW DSL",null,null,200,null,"hour",33.69]
[378,8702,"Truck, Flatbed","Miscellaneous 4X2 30KGVW DSL",null,null,217,null,"hour",43]
[379,8703,"Truck, Flatbed","Miscellaneous 6X4 45KGVW DSL",null,null,380,null,"hour",65.09]
[380,8708,"Trailer, semi","48ft spread axle flatbed",null,null,null,null,"hour",10.38]
[381,8709,"Trailer, semi","Enclosed 48ft, 2 axle trailer",null,null,null,null,"hour",11.57]
[382,8710,"Trailer, semi",null,null,null,null,null,"hour",11.17]
[383,8711,"Flat bed utility trailer","Non-Tilt Deck Utility Trailers - TOW 2 1 6",null,null,"NA",null,"hour",2.88]
[384,8711.1,"Sewer Camera Inspection Truck","ewer Inspection Trucks, Reefer/Refrigerated Truck, Cutaway-Cube Van - E450",null,null,null,null,"hour",16.71]
[385,8711.2000000000007,"Sewer Inspection Camera","Aries Pathfinder System Control Center, Work Station",null,null,null,null,"hour",98.03]
[386,8712,"Cleaner, Sewer/Catch Basin","Mongoose Jetters Model 123 Sewer Jetter (12 GPM @ 3000 PSI)","Pump: 12 GPM @ 3000 PSI\nTank Capacity: 150 Gallons Engine: 24 hp 690 cc Gas\nHose Reel: 3/8\" Hose, 250' Capacity\nAxle: 3,500lbs (single axle trailer)","Pump: 12 GPM @ 3000 PSI\nTank Capacity: 150 Gallons",24,null,"hour",19.579999999999998]
[387,8713,"Cleaner, Sewer/Catch Basin","Mongoose Jetters Model 254 Sewer Jetter (25 GPM @ 4000 PSI)","Tank Capacity: 300-600 gallons\nPump: 25 GPM @ 4000 PSI\nEngine: 74hp Tier IV Turbo Diesel Engine Hose Reel: 5/8\" Hose, 500' Capacity Axle: 7,000lbs","Pump: 25 GPM @ 4000 PSI\nTank Capacity: 300-600 gallons",74,null,"hour",25.32]
[388,8714,"Combined Sewer Cleaning","Vacuum Truck 800 Gal Spoils/400 Gal Water",null,null,74,null,"hour",29.07]
[389,8714.1,"Vector Combine Vaccum Truck","International 7500 Vactor 2100 Plus Hydro Excavation Vacuum T","12 CY Debris Tank\n8\" Suction Hose","13 CY Debris Tank\n8\" Suction Hose",310,null,"hour",99.66]
[390,8714.2000000000007,"Combined Sewer Cleaning",null,"1500 gal Water","1500 gal Water","N/A",null,"hour",23.75]
[391,8714.2999999999993,"Combined Sewer Cleaning",null,"500-1500 gals","500-1500 gals","N/A",null,"hour",16.440000000000001]
[392,8714.4,"Combined Sewer Cleaning (Accessory","Miscellaneous SH-4/25","4-IN","4-IN",0,"50-FT of 4-IN hoses @$0.60/Hour for\nVac Truck","hour",0.27]
[393,8715,"Truck, Hydro Vac","500-gal debris tank;",null,null,"N/A",null,"hour",21.27]
[394,8716,"Leaf Vac","XtremeVac DCL800SM Series Leaf Loader Truck Mounted","Aux Engine is a 74 HP John Deere T4F Diesel Engine.  Engine Remote Oil Drain.  DCL Bottom Exhaust for Box.  Wireless CAN Bridge Between Cab and HL Body.  28\" Suction Impeller with (6) 3/8\" Thick T-1 Steel Blades, 3 Groove Power Band Belt Driven, 40 Gallon Poly Fuel Tank.  Electronic Engine Controls with Safety Shut Downs. 13\" Clutch Assembly with 2.25\" PTO Shaft and Safety Engagement. 16\" x 144\" Urethane Suction Hose with Steel Nozzle.  1/4\" Thick Skid Deck with Channel Members on Ends.","25 CY","N/A","2024 ODB DCL800SM25HL","hour",64.599999999999994]
[395,8719,"Litter Picker","Miscellaneous TRAC MOUNT ENG DRIV","Broom Length 72.0 in",null,18,null,"hour",8.27]
[396,8720,"Truck, Dump","2026 FREIGHTLINER BUSINESS CLASS M2 106","7-CY","7-CY",330,null,"hour",55.28]
[397,8721,"Truck, Dump","2026 FREIGHTLINER BUSINESS CLASS M2 106","9-CY","9-CY",350,null,"hour",100.63]
[398,8722,"Truck, Dump","2025 FREIGHTLINER BUSINESS CLASS M2 106 PLUS","12-CY","12-CY",350,null,"hour",120.74]
[399,8723,"Truck, Dump","2025 FREIGHTLINER 108SD","14-CY","14-CY",470,null,"hour",122.94]
[400,8724,"Truck, Dump","2025 FREIGHTLINER 114SD PLUS","18 CY","18 CY",525,null,"Hour",147.99]
[401,8730,"Truck, Garbage",null,null,null,255,null,"Hour",62.97]
[402,8731,"Truck, Garbage",null,null,null,325,null,"Hour",69.44]
[403,8733,"E=BAM Services",null,null,null,null,null,"Hour",3.6]
[404,8734,"Attentuator, Safety","Scorpion II® TMA Truck Mounted Attenuator","Weight1,975 lbs (900kg)LengthTravel/Storage 2' 5\" (.74 m)Deployed 12'\n10\" (3.93 m)Width8' (2.45 m)HeightTravel/Storage 10' 6\" (3.05\nm)Deployed 12\" ± 1\" (305 mm ± 24.4 mm)",null,null,null,"Hour",4.53]
[405,8735,"Truck, Attenuator","2025 MACK MD6","2025 Mack MD64 with Curry Supply Crash Attenuator Body. Truck equipped with Cummins ISB6.7 300HP, Allison 2500 RDS Automatic\n6speed Transmission.",null,300,null,"Hour",4.9000000000000004]
[406,8736,"Truck, Tow","ER Rollback Tow Truck, Roll Off Truck, Flatbed Truck - BUSINESS C","FLOOR CAPACITY – 20,000LBS WINCH CAPACITY – 15,000LBS\nTOW BAR LIFT – 8,000LBS","GVW TOTAL – 33,000LBS",350,null,"Hour",51.83]
[407,8744,"Van, Custom","2025 Sprinter Cab Chassis","Payload Capacity:6,345 to 7,418 lbs Seating Capacity:2-3\nMax Available GVWR:11,030 lbs Base Curb Weight:4,685 lbs Max Available GCWR:15,249 lbs\nMax Towing:7,500 lbs [1]","Wheelbase:170 in",211,null,"Hour",33.29]
[408,8745,"Van. Cargo","2025 Sprinter Cargo Van","Payload Capacity:6,250 lbs Seating Capacity:2-3  Cargo Volume:469 cu ft\nMax Available GVWR:12,125 lbs\nMax Towing:7,500 lbs","170\" Extended Wheelbase High Roof",211,null,"Hour",35.130000000000003]
[409,8747,"Van, Passenger","2025 Sprinter Passenger Van","Payload Capacity:3,109 lbs Seating Capacity:15\nCargo Volume:117 cu ft\nMax Available GVWR:9,480 lbs","15 Passenger",211,null,"Hour",27.9]
[410,8748,"Van, Small Cargo","2025 Metris Cargo Van","Payload Capacity:2,150 lbs Seating Capacity:2\nTowing Capacity:5,000 lbs [1]\nCargo Volume:199.2","Wheelbase:135 in",208,null,"Hour",23.42]
[411,8749,"Van, Small Passenger","2025 Metris Passenger Van","Payload Capacity:1,720 lbs Seating Capacity:8\nCargo Volume:37.43 Cu. Ft","8 Passenger",208,null,"Hour",23.86]
[412,8750,"Vehicle, Small",null,null,null,null,null,"Hour",8.2200000000000006]
[413,8753,"Vehicle, Recreational",null,null,null,null,null,"Hour",5.13]
[414,8754,"Motor Coach","GVW=50534, 56 Passenger + 1-Driver",null,null,430,null,"Hour",82.69]
[415,8755,"Golf Cart",null,null,null,null,null,"Hour",6.68]
[416,8761,"Vibrator, Concrete","Miscellaneous 2-7/21 - Motor-in-Head",null,null,2,"Added from EW","Hour",1.79]
[417,8770,"Welder, Portable","Miller Bobcat 230 (Kohler) Engine Driven Welder 907824","Output Range DC stick 20–230 A MIG/flux-cored 14–25 V Auxiliary Power\nOutput Rated at 104°F (40°C) 11,000 watts peak, 9,500 watts continuous",null,null,null,"Hour",5.33]
[418,8771,"Welder, Portable","Miscellaneous DIESEL 300 DC-CC",null,33,33,"Added from EW","Hour",10.98]
[419,8772,"Welder, Portable","Miller Big Blue 600 Pro (Kubota) Deluxe w/ArcReach 907737001","Output Range DC stick/TIG 20–600 A DC MIG/FCAW 15–50 V Auxiliary Output Rated at 104°F (40°C) 3-phase 27,000 watts peak, 20,000 watts continuous 1-phase 15,000 watts peak, 12,000 watts continuous",null,null,null,"Hour",19.79]
[420,8773,"Welder, Portable","er Big Blue 800 Duo Air Pak (Deutz) Diesel Welder w/WIC & ArcRe","Output Range Single weld mode CC: 40–800 A, CV: 15–50 V Dual weld mode CC: 20–400 A, CV: 15–50 V Auxiliary Output Rated at 104°F (40°C) 3-phase 27,000 watts peak, 20,000 watts continuous 1-phase 15,000 watts peak, 12,000 watts continuous",null,null,null,"Hour",20.170000000000002]
[421,8780,"Truck, Water","Miscellaneous DSL 4X2 2500",null,2500,150,"Added from EW","Hour",35.049999999999997]
[422,8781,"Truck, Water","Miscellaneous BB2 DSL 6X4 4000 (disc. 1994)",null,4000,250,"Added from EW","Hour",53.72]
[423,8789,"Truck, Tractor","FREIGHTLINER BUSINESS CLASS M2 106 PLUS 4X2",null,"26,001 - 33,000 pounds","to 350",null,"Hour",75.13]
[424,8790,"Truck, Tractor","FREIGHTLINER BUSINESS CLASS M2 106 6X4",null,"33,001 to 52,000 pounds","to 450",null,"Hour",91.1]
[425,8793,"Truck","Ford F-450 Cutaway Truck (disc. 2018)",null,390,390,"Added from EW for 2022","Hour",66.13]
[426,8794,"Truck, Freight","Dodge Ram Chassis 5500",null,275,275,"Added from EW for 2022","Hour",27.84]
[427,8795,"Truck, backhoe carrier","Miscellaneous 4X2 25KGVW DSL",null,380,380,"Added from EW for 2022","Hour",34.28]
[428,8796,"Truck, freight","Enclosed w/lift gate. Heavy duty, class 7",null,null,null,null,"Hour",36.72]
[429,8797,"Truck, freight","M2-106 4x2 Diesel (disc. 2015)",null,null,250,null,"Hour",54.34]
[430,8800,"Truck, Pickup","Any Size Pick Up Per Mile cost",null,null,null,null,"Mile",0.7]
[431,8801,"Truck, Pickup","Miscellaneous 4X2 1/2 160 CONV DSL",null,null,160,"Added from EW","Hour",17.510000000000002]
[432,8802,"Truck, Pickup","4X2 1 195 CONV DSL",null,null,195,"Added from EW","Hour",17.45]
[433,8803,"Truck, Pickup","4X2 1 1/4 360 CONV DSL",null,null,360,"Added from EW","Hour",27.82]
[434,8804,"Truck, Pickup","4X2 1 1/2 300 CONV DIESEL",null,null,310,"Added from EW","Hour",29.09]
[435,8805,"Truck, Pickup","Miscellaneous 4X2 1 3/4 360 CONV DSL",null,null,360,"Added from EW. Was 300-HP.","Hour",34.020000000000003]
[436,8806,"Truck, Pickup","Miscellaneous 4X2 3/4 160 CONV DSL",null,null,160,"Added from EW","Hour",14.48]
[437,8807,"Truck, Pickup","Miscellaneous 4X4 3/4 285 CREW GAS",null,null,285,"Added from EW","Hour",18.71]
[438,8808,"Truck, Pickup","4X4 1 340 CREW DSL",null,null,340,"Added from EW","Hour",31.54]
[439,8809,"Truck, Pickup","4X4 1 1/4 360 CREW GAS",null,null,360,"Added from EW","Hour",35.270000000000003]
[440,8810,"Truck, Pickup","4X4 1 1/2 362 CREW GAS",null,null,362,"Added from EW","Hour",35.75]
[441,8811,"Truck, Pickup","4X4 1 3/4 362 CREW GAS",null,null,362,"Added from EW","Hour",34.590000000000003]
[442,8822,"Truck,  Loader","2023 BARKO 495B","CSI 264 Ultra Delimber, 48\" Rotobec Grapple, Pitts Hydraulic Trailer,\nGround Saw Ready,",null,null,null,"Hour",75.83]
[443,8823,"Chipper- Wood Recycler","2021 BANDIT 2460T BEAST RECYCLER",null,null,560,null,"Hour",186.25]
[444,8824,"Skidder","John Deere 640L-II (2020)",null,null,237,null,"Hour",114.41]
[445,8825,"Skidder","John Deere 948L-II (2020)",null,null,300,null,"Hour",136.80000000000001]
[446,8840,"Truck, service",null,null,null,null,null,"Hour",46.29]
[447,8841,"Truck, fuel","Miscellaneous BB2 Gas 4X2 2000",null,null,null,null,"Hour",42.54]
[448,8842,"Mobile Command Center Trailer",null,null,null,null,null,"Hour",182.51]
[449,8843,"Mobile Command Center Vehicle","GVWR: 54600 lbs",null,null,"up to 550",null,"Hour",333.86]
[450,8844,"Mobile Communications Trailer","Multi-purpose Mobile Mast System","Tower trailer with generator, antena and station repeater.","Up to 60 foot height",null,null,null,13.46]
[451,8870,"Light Tower","Generac MLT4080 8kW Mobile LED Light Tower","25 FT","25 FT","to 13","Added from EW","Hour",8.7100000000000009]
[452,8871,"Light Tower","Generac MLT4200 20kW Mobile Light Tower","25 FT","25 FT","to 40","Added from EW","Hour",5.49]
[453,8872,"Sand Bagger Machine","Ultimate Bagger Sandbag Filling Machine","1200 Bags per Hour Filling and Sealing","2 Cubic Yard Hopper",null,null,"Hour",42.95]
[454,8900,"Helicopter","2018 Bell 407 GXI EMS- Ambulance","Ambulace",null,null,null,"Hour",2795.22]
[455,8901,"Helicopter","2018 Bell 407GXi","7 Place Corporate Interior (2) Crew & (5) Passengers","7 Place Corporate Interior (2) Crew\n& (5) Passengers",null,null,"Hour",1958.83]
[456,8902,"Helicopter","Leonardo/Agusta Westland AW169","1 person crew and can transport up to 8 passengers","1 person crew and can transport up\nto 8 passengers",null,null,"Hour",4157.3599999999997]
[457,8903,"Helicopter","Sikorsky S-92","2 person crew and can transport up to 22 passengers.","2 person crew and can transport up to 22 passengers.",null,null,"Hour",6430.46]
[458,8904,"Helicopter","Sikorsky S-70M Firehawk helicopter","1,000-gallon belly tank and other firefighting gear.","1,000-gallon belly tank and other\nfirefighting gear.",null,null,"Hour",10310.57]
[459,8906,"Fixed wing","Cessna Turbo Stationair HD","Maximum Range 703 nm Maximum Cruise Speed 161 ktas Maximum Passengers 6\nMaximum Range 703 NM","6 Passenger",null,null,"Hour",661.42]
[460,8907,"Fixed wing","Cessna Caravan EX","Maximum Cruise Speed 186 ktas Maximum Passengers 10-14 Maximum Range 1,070 NM","10 to 14 Passengers",null,null,"Hour",1530.01]
[461,8914,"Fixed wing","Cessna SkyCourier (Passenger)","Maximum Cruise Speed 210 ktas Maximum Passengers 19\nMaximum Range 920 NM","19 Passenger",null,null,"Hour",2788.54]
[462,8915,"Fixed wing","Bombardier Challenger 3500 (Jet)","Maximum Cruise Speed 882 KM/H Maximum Passengers 10 Maximum Range 3,400 NM","10 Passenger",null,null,"Hour",7890.84]
[463,8916,"Fixed wing","Bombardier Global 8000","Maximum Cruise Speed 940 KM/H Maximum Passengers 19 Maximum Range 8,000 NM","19 Passenger",null,null,"Hour",9604.18]
[464,8943,"Wire Puller Machine","UD-50 Underground Puller","Engine 8-10 Hp TBA\nFuel Capacity 1.25 gallons Pulling Rope 3/8 in. dia. Steel Cable Reel Capacity 1,500 ft. (3/8 in. dia.)\nSkid Frame Construction Steel tubing, continuous-weld Wheel Configuration & Tires 14 x 5.5 Drop Center; ST205-75R 14BC\nBrakes, trailer Electric, Standard",null,null,null,"Hour",23.24]
[465,8944,"Wire Tensioning Machine","HOGG DAVIS OLT-38 BULLWHEEL TENSIONER","Maximum Continuous Tension of 5,000 lbs @ 4 MPH Bullwheel Diameter 38in\nReel Capacity 54in W x 90in D\nMaximum Reel Weight 8,000 lbs.",null,null,null,"Hour",18.329999999999998]

{"sheet":"LEMA PER DIEM RATES","index":7,"n_rows":23,"n_cols":2,"rows_kept":23,"cut":false,"hidden":false,"merged":[[22,0,22,1],[0,0,0,1],[2,0,2,1],[3,0,3,1],[4,0,4,1],[17,0,17,1]]}
["LEMA Per Diem Rates 2025-2026"]
[]
["MEALS AND INCIDENTAL RATES"]
["The following reimbursement rates for meals and incidentals are maximums, not allowances.  In the event of an audit, must be able to produce receipts substantiating the amount claimed."]
["HR Manual section 2203 – Allowances and Travel Reimbursements provides additional information, including travel timeframes (fractional day of travel, trip of less than 24 hours, trip of more than 24 hours, etc.)."]
["Meal and Incidental Expense Category​","​Effective October 1, 2024: Reimbursement Rate for Actual Expense​"]
["​Breakfast","Up to $16"]
["​Lunch","​Up to $19"]
["​Dinner","​Up to $28"]
["​Incidentals​","​Up to $5"]
["​Total Daily Maximum Allowance​","​Up to $68"]
["First & Last Day of Travel ","Up to $51"]
["2025 Personal Vehicle Mileage Reimbursement Rates","​Effective October 1, 2024: Reimbursement Rate for Actual Expense​"]
["Personal Vehicle (approved Business/travel expense)",0.72499999999999998]
["Personal Vehicle (state-approved relocation)",0.21]
["Personal Aircraft (per statute mile)",1.75]
[]
["MAXIMUM LODGING REIMBURSEMENT RATES PER NIGHT"]
["Please log onto the CALHR website for most current rates:","Human Resources Manual - CalHR"]
[]
[]
[]
["Note: LEMA reimburses at the current state rate."]

{"sheet":"LEMA MATERIALS","index":8,"n_rows":7,"n_cols":10,"rows_kept":7,"cut":false,"hidden":false,"merged":[[3,1,3,4],[4,1,4,4],[1,1,1,9],[2,1,2,9],[5,1,6,1],[5,2,6,2],[5,5,6,5],[5,6,6,6],[5,7,5,8],[5,9,6,9],[4,7,4,9],[3,7,3,9],[4,5,4,6],[3,5,3,6]]}
[null,null,null,"CalOES - Law Enforcement Mutual Aid Assistance (LEMA) Program "]
[null," "]
[null,"FORCE ACCOUNT MATERIALS SUMMARY RECORD"]
[null,"APPLICANT",null,null,null,"CATEGORY",null,{"$f":"'FILL OUT FIRST - TOC'!E4","v":"Disaster Number (XXXX-DR-STATE):"}]
[null,{"$f":"'FILL OUT FIRST - TOC'!$F$5","v":0},null,null,null,{"$f":"'FILL OUT FIRST - TOC'!$F$6","v":"Law Enforcement Mutual Aid"},null,{"$f":"'FILL OUT FIRST - TOC'!$F$4","v":0}]
[null,"Vendor","Description","Total Invoiced Amount","Total \nClaimed Amount","Date Purchased","Date Used","Source of Data",null,"Comments"]
[null,null,null,{"$f":"SUM(D8:D996)","v":0},{"$f":"SUM(E8:E996)","v":0},null,null,"Invoice #","Stock"]

{"sheet":"RA MATERIALS","index":9,"n_rows":6,"n_cols":10,"rows_kept":6,"cut":false,"hidden":false,"merged":[[4,9,5,9],[0,1,0,9],[1,1,1,9],[2,1,2,4],[2,5,2,6],[2,7,2,9],[3,1,3,4],[3,5,3,6],[3,7,3,9],[4,1,5,1],[4,2,5,2],[4,5,5,5],[4,6,5,6],[4,7,4,8]]}
[null," "]
[null,"FORCE ACCOUNT MATERIALS SUMMARY RECORD"]
[null,"APPLICANT",null,null,null,"CATEGORY",null,{"$f":"'FILL OUT FIRST - TOC'!E4","v":"Disaster Number (XXXX-DR-STATE):"}]
[null,{"$f":"'FILL OUT FIRST - TOC'!$F$5","v":0},null,null,null,{"$f":"'FILL OUT FIRST - TOC'!$F$6","v":"Law Enforcement Mutual Aid"},null,{"$f":"'FILL OUT FIRST - TOC'!$F$4","v":0}]
[null,"Vendor","Description","Total Invoiced Amount","Total \nClaimed Amount","Date Purchased","Date Used","Source of Data",null,"Comments"]
[null,null,null,{"$f":"SUM(D7:D995)","v":0},{"$f":"SUM(E7:E995)","v":0},null,null,"Invoice #","Stock"]

{"sheet":"COST SUMMARY ROLL-UP","index":10,"n_rows":22,"n_cols":10,"rows_kept":22,"cut":false,"hidden":false,"merged":[[1,2,1,9],[3,2,3,9],[2,2,2,9],[8,4,8,8],[6,4,6,8],[4,8,4,9],[5,6,5,7],[4,6,4,7],[7,4,7,8],[5,8,5,9],[4,2,4,5],[5,2,5,5],[9,4,9,8],[10,4,10,8],[11,4,11,8],[12,4,12,8],[13,4,13,8],[22,2,30,9],[21,2,21,9],[19,8,20,9],[16,2,17,9],[14,4,14,8],[15,4,15,8],[18,2,18,7],[18,8,18,9],[19,2,20,7]]}
[]
[null,null,"CalOES - Law Enforcement Mutual Aid Assistance (LEMA) Program"]
[null,null," "]
[null,null,"COST SUMMARY ROLL-UP"]
[null,null,"APPLICANT",null,null,null,"CATEGORY",null,{"$f":"'FILL OUT FIRST - TOC'!E4","v":"Disaster Number (XXXX-DR-STATE):"}]
[null,null,{"$f":"'FILL OUT FIRST - TOC'!$F$5","v":0},null,null,null,{"$f":"'FILL OUT FIRST - TOC'!$F$6","v":"Law Enforcement Mutual Aid"},null,{"$f":"'FILL OUT FIRST - TOC'!$F$4","v":0}]
[null,null,"CATEGORY","CLAIM COST","          COMMENTS",null,null,null,null,"ELIGIBLE COSTS"]
[null,null,"FORCE ACCOUNT LABOR OVERTIME TIME",{"$f":"LABOR!AE7","v":0},null,null,null,null,null,{"$f":"LABOR!AE7","v":0}]
[null,null,"FORCE ACCOUNT LEMA EQUIPMENT",{"$f":"'LEMA EQUIPMENT'!AE9","v":0},null,null,null,null,null,{"$f":"'LEMA EQUIPMENT'!AE9","v":0}]
[null,null,"LEMA MATERIALS",{"$f":"'LEMA MATERIALS'!D7","v":0},null,null,null,null,null,{"$f":"'LEMA MATERIALS'!E7","v":0}]
[null,null,"LEMA TOTAL",{"$f":"SUM(D8:D10)","v":0},null,null,null,null,null,{"$f":"SUM(J8:J10)","v":0}]
[null,null,"FORCE ACCOUNT LABOR REGULAR TIME/OVERTIME",{"$f":"LABOR!AE6","v":0},null,null,null,null,null,{"$f":"LABOR!AE6","v":0}]
[null,null,"FORCE ACCOUNT RA EQUIPMENT",{"$f":"'RA EQUIPMENT'!AE8","v":0},null,null,null,null,null,{"$f":"'RA EQUIPMENT'!AE8","v":0}]
[null,null,"RA MATERIALS",{"$f":"'RA MATERIALS'!D6","v":0},null,null,null,null,null,{"$f":"'RA MATERIALS'!E6","v":0}]
[null,null,"RA TOTAL",{"$f":"SUM(D12:D14)","v":0},null,null,null,null,null,{"$f":"SUM(J12:J14)","v":0}]
[null,null,"GRAND TOTAL",{"$f":"D11+D15","v":0},null,null,null,null,null,{"$f":"J11+J15","v":0}]
[null,null,"I certify that the above information was transcribed from timesheets, payroll records, equipment log, invoices, stock records or other documents which are available for audit."]
[]
[null,null,"Certified by:",null,null,null,null,null,"Date:"]
[null,null,{"$f":"'FILL OUT FIRST - TOC'!F16","v":0}]
[]
[null,null,"Applicant's records have been reviewed and found correct with the exceptions as noted."]

{"sheet":"LEMA INVOICE","index":11,"n_rows":22,"n_cols":5,"rows_kept":22,"cut":false,"hidden":false,"merged":[[20,1,20,4],[21,1,21,4],[0,3,0,4],[7,3,7,4],[13,1,13,2],[14,1,14,2]]}
[null,null,null,"INVOICE"]
[null,{"$f":"'FILL OUT FIRST - TOC'!F10","v":0}]
[null,{"$f":"'FILL OUT FIRST - TOC'!F11","v":0}]
[null,{"$f":"'FILL OUT FIRST - TOC'!F12","v":0},null,"INVOICE NO."]
[null,{"$f":"'FILL OUT FIRST - TOC'!F13","v":0},null,"DATE"]
[null,{"$f":"'FILL OUT FIRST - TOC'!F14","v":0},null,"RESOURCE TYPE","Law Enforcement Mutual Aid"]
[null,{"$f":"'FILL OUT FIRST - TOC'!F15","v":0}]
[null,"TO:                    CalOES - Law Enforcement Branch"]
[null,"3650 Schriever Ave"]
[null,"Mather, CA.  95655"]
[null,"Attn:  LEMA Assistance Unit"]
[]
[null," Email:  LEMAFUND@caloes.ca.gov"]
[null," ",null,"PAYMENT TERMS"]
[null," Incident- Mutual Aid Response",null,"Due on receipt"]
[null,"DESCRIPTION","QUANTITY","TOTAL"]
[null,"Force Account Labor - Overtime",{"$f":"LABOR!AA7","v":0},{"$f":"LABOR!AE7","v":0}]
[null,"Equipment/Fuel/Mileage",{"$f":"'LEMA EQUIPMENT'!AD9","v":0},{"$f":"'LEMA EQUIPMENT'!AE9","v":0}]
[null,"Materials/Supplies/Food",{"$f":"'LEMA MATERIALS'!D7","v":0},{"$f":"'LEMA MATERIALS'!E7","v":0}]
[null,null,{"$f":"SUM(C17:C19)","v":0},{"$f":"SUBTOTAL(109,Data[TOTAL])","v":0}]
[null,{"$f":"\"Make all checks payable to \"&Company_Name&\".\"","v":"Make all checks payable to 0."}]
[null," THANK YOU FOR YOUR BUSINESS!"]

{"sheet":"RA INVOICE","index":12,"n_rows":22,"n_cols":5,"rows_kept":22,"cut":false,"hidden":false,"merged":[[21,1,21,4],[0,3,0,4],[7,3,7,4],[13,1,13,2],[14,1,14,2],[20,1,20,4]]}
[null,null,null,"INVOICE"]
[null,{"$f":"'FILL OUT FIRST - TOC'!F10","v":0}]
[null,{"$f":"'FILL OUT FIRST - TOC'!F11","v":0}]
[null,{"$f":"'FILL OUT FIRST - TOC'!F12","v":0},null,"INVOICE NO."]
[null,{"$f":"'FILL OUT FIRST - TOC'!F13","v":0},null,"DATE"]
[null,{"$f":"'FILL OUT FIRST - TOC'!F14","v":0},null,"RESOURCE TYPE","Law Enforcement Mutual Aid"]
[null,{"$f":"'FILL OUT FIRST - TOC'!F15","v":0}]
[null,"TO:                        "]
[]
[]
[]
[]
[]
[null," ",null,"PAYMENT TERMS"]
[null," Incident- Mutual Aid Response",null,"Due on receipt"]
[null,"DESCRIPTION","QUANTITY","TOTAL"]
[null,"Force Account Labor - Straight Time/Overtime",{"$f":"LABOR!AA6","v":0},{"$f":"LABOR!AE6","v":0}]
[null,"Equipment/Fuel/Mileage",{"$f":"'RA EQUIPMENT'!AD8","v":0},{"$f":"'RA EQUIPMENT'!AE8","v":0}]
[null,"Materials/Supplies/Food",null,{"$f":"'RA MATERIALS'!E6","v":0}]
[null,null,null,{"$f":"SUBTOTAL(109,Data3[TOTAL])","v":0}]
[null,{"$f":"\"Make all checks payable to \"&Company_Name&\".\"","v":"Make all checks payable to 0."}]
[null," THANK YOU FOR YOUR BUSINESS!"]

{"sheet":"List Selections","index":13,"n_rows":6,"n_cols":1,"rows_kept":6,"cut":false,"hidden":true,"merged":[]}
[]
["Emergency Management Mutual Aid"]
["Law Enforcement Mutual Aid"]
["Public Health Mutual Aid"]
["EMS Mutual Aid"]
["Other Specify Below"]